Workbook

Sheet MODEL
A1: I N S T R U K C E A L E G E N D A: | G1: požadované mn. BE | L1: 20 | N1: t/den | P1: výstupní teplota BE | T1: 25 | U1: °C | W1: odstředivka pro zap | AA1: zapnuto | AC1: ods | AD1: tepl. stěn. ferm. 301 | AH1: 60 | AI1: °C | AJ1: doba zdržení B-301* | AN1: 1 | AO1: den | AQ1: spotřeba páry | AT1: =C65+L67+F143+H188+Q184+X184+AD196 -> 447.4908326 | AV1: t/den
A2: zadavatelné/měnitel.: | P2: teplota teplé vody | T2: 50 | U2: °C | W2: odparka pro záparu | AA2: zapnuto | AC2: =IF(ODS=0,IF(odparka="zapnuto","!!!",""),"") ->  | AD2: tepl. stěn. ferm. 302 | AH2: 45 | AI2: °C | AJ2: doba zdržení B-302* | AN2: 1.5 | AO2: den | AQ2: spotřeba elektřiny | AT2: =AA16+AP49+AR89+AJ89+AA89+R89+I89+T204+Z160 -> 23062.93559 | AV2: kWh/den
A3: hmotnostní tok | B3: 1 | C3: t/den | P3: tepl. chladné vody | T3: 5 | U3: °C | AD3: tepl. stěn. ferm. 303 | AH3: 45 | AI3: °C | AJ3: doba zdržení B-303* | AN3: 1 | AO3: den | AQ3: chladící výkon | AT3: =U156+AM164+K121+S121+F94 -> 47911.19861 | AV3: kWh/den
A4: spotřeba páry | B4: 1 | C4: t/den | G4: hrubých nečistot v sil. | L4: 5 | N4: % hm | AD4: tepl. stěn. ferm. 304 | AH4: 40 | AI4: °C | AJ4: doba zdržení B-304* | AN4: 1.5 | AO4: den | AQ4: výtěžek etanolu | AT4: =L1/H18 -> 0.1412710566 | AV4: w(et)/w(vstup)
A5: spotřeba elektřiny | B5: 1 | C5: kWh/den | G5: magnet. nečistot | L5: 3 | N5: % hm | P5: poměr vody : klas. | T5: 1 | U5: ="- w/w" -> - w/w | AD5: pož. teplota je v listu "DATA A VÝPOČTY"
A6: chladící výkon | B6: 1 | C6: kWh/den | G6: (ve vstupující siláži) | P6: (poměr promývání v F-103) | AD6: * hodnoty se nedoporuřuje měnit (podbarveny žlutě)
L15: vody | AA15: drtič (nůž)
L16: ='DATA A VÝPOČTY'!C208 -> 141.5718158 | AA16: ='DATA A VÝPOČTY'!C292 -> 5502.896478
H17: klasy
H18: ='DATA A VÝPOČTY'!C205 -> 141.5718158
Q22: bez hrub. n. | X22: čist. klasů | AG22: čist. klasů
Q23: =H18-'DATA A VÝPOČTY'!C200/100*'DATA A VÝPOČTY'!C205 -> 134.493225 | X23: =Q23-'DATA A VÝPOČTY'!C201/100*'DATA A VÝPOČTY'!C205 -> 130.2460705 | AG23: ='DATA A VÝPOČTY'!C202 -> 130.2460705
Z29: mag. nečis.
Z30: ='DATA A VÝPOČTY'!C201/100*'DATA A VÝPOČTY'!C205 -> 4.247154473
R33: do WWT
R34: ='DATA A VÝPOČTY'!C205*'DATA A VÝPOČTY'!C200/100+'DATA A VÝPOČTY'!C208 -> 148.6504065
O37: NT pára
O38: ='DATA A VÝPOČTY'!C218 -> 3.907382115
I43: 20% H2SO4
I44: ='DATA A VÝPOČTY'!C224 -> 6.512303525
Z48: brýdy z fl. | AP48: el. příkon m.
Z49: ='DATA A VÝPOČTY'!C261 -> 38.73015829 | AP49: ='DATA A VÝPOČTY'!C197 -> 4758.090653
C50: čist. klasů
C51: =AG23 -> 130.2460705
T54: do flash. | AG54: pevná fáze
T55: =O70+L67+C51+C65+I44 -> 424.6530091 | AG55: ='DATA A VÝPOČTY'!C248 -> 31.14386609
J56: celk z B-202
J57: ='DATA A VÝPOČTY'!C227 -> 147.1780597
AS60: do SEKT. 3
Z61: z flash na pH | AS61: =E84 -> 389.2983261
Z62: ='DATA A VÝPOČTY'!C258 -> 389.8302329
C64: páry do 1. r.
A65: PÁRA | C65: ='DATA A VÝPOČTY'!C212 -> 13.02460705
L66: pára do 2. r
L67: ='DATA A VÝPOČTY'!C264 -> 39.09195746 | AD67: kap. fáze
AD68: ='DATA A VÝPOČTY'!C250 -> 358.6863668
O69: přívod vody
O70: ='DATA A VÝPOČTY'!C270 -> 235.7780706
Y73: vápno
Y74: ='DATA A VÝPOČTY'!C253 -> 0.3725872084
AU76: sádra
AU77: ='DATA A VÝPOČTY'!C254 -> 0.9044939827
E83: přítok z PT
E84: ='DATA A VÝPOČTY'!C193 -> 389.2983261
I88: el. příkon m. | R88: el. příkon m. | AA88: el. příkon m. | AJ88: el. příkon m. | AR88: el. příkon m.
I89: ='DATA A VÝPOČTY'!C167 -> 1090.289335 | R89: ='DATA A VÝPOČTY'!C168 -> 1635.434002 | AA89: ='DATA A VÝPOČTY'!C169 -> 1090.289335 | AJ89: ='DATA A VÝPOČTY'!C170 -> 1635.434002 | AR89: ='DATA A VÝPOČTY'!C171 -> 3168
F93: chlad. v. | V93: celkem odp. CO2
F94: ='DATA A VÝPOČTY'!E138 -> 8591.496781 | V94: ='DATA A VÝPOČTY'!C190 -> 19.32956523
AU97: výstup
AU98: ='DATA A VÝPOČTY'!C132 -> 369.9687609
AU100: obj. průt. [m^3/den]
AU101: ='DATA A VÝPOČTY'!C133 -> 400
H118: objem B-301 | P118: objem B-302 | Z118: objem B-303 | AI118: objem B-304
H119: ='DATA A VÝPOČTY'!C151 -> 344.1569869 | P119: ='DATA A VÝPOČTY'!C152 -> 516.2354804 | Z119: ='DATA A VÝPOČTY'!C153 -> 344.1569869 | AI119: ='DATA A VÝPOČTY'!C154 -> 516.2354804
K120: chlad. v. | S120: chlad. v.
K121: ='DATA A VÝPOČTY'!F138 -> 6443.622586 | S121: ='DATA A VÝPOČTY'!G138 -> 3866.173552
U122: chladná do 3 | AC122: chladná do 4
C123: chladná do 1 | U123: ='DATA A VÝPOČTY'!G147 -> 59.19500175 | AC123: ='DATA A VÝPOČTY'!H147 -> 0 | AQ123: objem K-306
C124: ='DATA A VÝPOČTY'!E147 -> 0 | AQ124: ='DATA A VÝPOČTY'!C156 -> 600
L127: chladná do 2
L128: ='DATA A VÝPOČTY'!F147 -> 0
C132: přívod reg. v.
C133: =C124+L128+U123+AC123+AE137+X137+O137+L137-F143 -> 207.0407365
L136: teplá do 1 | O136: teplá do 2 | X136: teplá do 3 | AE136: teplá do 4
L137: ='DATA A VÝPOČTY'!E146 -> 73.99375218 | O137: ='DATA A VÝPOČTY'!F146 -> 73.99375218 | X137: ='DATA A VÝPOČTY'!G146 -> 0 | AE137: ='DATA A VÝPOČTY'!H146 -> 14.79875044
F142: ostr. pára | M142: kondenzát
F143: ='DATA A VÝPOČTY'!C149 -> 14.94052004 | M143: =F143 -> 14.94052004
AP153: 99% BE
AP154: =L1 -> 20
U155: chladící v.
U156: ='DATA A VÝPOČTY'!C130 -> 23508.61539
Z158: ventilator
Z159: ='DATA A VÝPOČTY'!C8 -> 20.86361213
Z160: ='DATA A VÝPOČTY'!C288 -> 149.4962953
N161: nastřik záp.
N162: ='DATA A VÝPOČTY'!C48 -> 369.9687609
AC163: brýda | AM163: chlad. výkon
AC164: ='DATA A VÝPOČTY'!C10 -> 0.8636121267 | AM164: ='DATA A VÝPOČTY'!C17 -> 5501.290307
V166: nástřik rek.
V167: ='DATA A VÝPOČTY'!C86 -> 49.8889601
S171: kond. záp | V171: kond. rek. | AF171: průtok př.
S172: ='DATA A VÝPOČTY'!C110 -> 49.55300372 | V172: ='DATA A VÝPOČTY'!C111 -> 13.38325137 | AF172: ='DATA A VÝPOČTY'!C98 -> 36.21518325
N176: záp. do pr. | AB176: pára z prač.
N177: ='DATA A VÝPOČTY'!C72 -> 320.0798008 | AB177: ='DATA A VÝPOČTY'!C106+'DATA A VÝPOČTY'!C108 -> 7.755102041 | AM177: odparka
AM178: odp. vody
AM179: ='DATA A VÝPOČTY'!C124 -> 258.6288632
T181: celk: | U181: =S172+V172 -> 62.93625509
Q183: pára - záp. k | X183: pára -rek. k
Q184: ='DATA A VÝPOČTY'!C75 -> 49.55300372 | X184: ='DATA A VÝPOČTY'!C103 -> 13.38325137
H187: pára - prač. | AM187: syrup
H188: ='DATA A VÝPOČTY'!C108 -> 7.142857143 | AM188: ='DATA A VÝPOČTY'!C123 -> 32.35277392
AM194: kond.
AD195: ost. pára | AM195: =AD196 -> 310.3546358
AD196: ='DATA A VÝPOČTY'!C126 -> 310.3546358
AA198: kapal. f.
AA199: ='DATA A VÝPOČTY'!C116 -> 291.2726187
L200: pevná fáze
L201: ='DATA A VÝPOČTY'!C117 -> 29.09816371 | T201: odstředivka
T202: celk. průtok
T203: ='DATA A VÝPOČTY'!C116+'DATA A VÝPOČTY'!C115 -> 320.0798008
T204: ='DATA A VÝPOČTY'!C280 -> 4033.00549

Sheet DATA A VÝPOČTY
B1: definovatelné, možné měnit.
B2: fyzikálně dané, nedoporučuje se měnit.
B3: vypočítané a odkazované, neměnit!
C4: hodnota | D4: jednotka | E4: zdroj | F4: komentář
A5: S4 | B5: definice vstupních parametrů
A6: be | B6: požadované mn. BE (99%) | C6: =MODEL!L1 -> 20 | D6: t/den | F6: (volitelné na záložce "MODEL")
B7: koncentrace BE na výstupu kolony K-403 | C7: ='DALŠÍ INFORMACE'!D13 -> 0.9490207103 | D7: % | F7: azeotrop Eth-W, poč. z tlaku na listu "DALŠÍ INFORMACE"
A8: be | B8: průtok par na výstupu z kolony K-403 | C8: =C6*0.99/C7 -> 20.86361213 | D8: t/den
A10: w | B10: výstup brýdy z mol. sít | C10: =C8-C6 -> 0.8636121267 | D10: t/den
B12: teplota ethanolu na výstupu z procesu | C12: =MODEL!T1 -> 25 | D12: °C | F12: (volitelné na záložce "MODEL")
B13: teplota ethanolu na výstupu z K-403 | C13: 75 | D13: °C | F13: azeotropická teplota při atm. tlaku (~ zanedbání, pro výp. stačí)
A15: w | B15: potřebný chladící výkon w-406 | C15: =(C13-C12)*C6*'VLASTNOSTI LÁTEK'!D6+C6*'VLASTNOSTI LÁTEK'!H6 -> 19804.64511 | D15: MJ/den
B16: výkon chladiče | C16: =C15/24/3600*1000 -> 229.2204295 | D16: kW
B17: spotřeba chlad. výkonu | C17: =C16*24 -> 5501.290307 | D17: kWh/den
B19: složení vstupu do K-402 (záparové kol.)
B20: ethanol | C20: ='DALŠÍ INFORMACE'!C29 -> 0.05516185533 | D20: ="- (w/w)" -> - (w/w) | F20: převzato z PFD schémat v [0]- viz. list "DALŠÍ INFORMACE"
B21: voda | C21: ='DALŠÍ INFORMACE'!C30 -> 0.8328784656 | D21: ="- (w/w)" -> - (w/w)
B22: zbylé cukry (gl, xy, ar…) | C22: ='DALŠÍ INFORMACE'!C31 -> 0.004048535767 | D22: - (w/w)
B23: oligomery cukrů | C23: ='DALŠÍ INFORMACE'!C32 -> 0.007705994533 | D23: - (w/w)
B24: škrobový likér | C24: ='DALŠÍ INFORMACE'!C33 -> 0.003241939453 | D24: - (w/w)
B25: další rozpustné látky | C25: ='DALŠÍ INFORMACE'!C34 -> 0.02128925422 | D25: - (w/w)
B26: kyselina octová | C26: ='DALŠÍ INFORMACE'!C35 -> 0.01168342539 | D26: - (w/w)
B27: kys. sírová | C27: ='DALŠÍ INFORMACE'!C36 -> 0.0003421923754 | D27: - (w/w)
B28: furfural | C28: ='DALŠÍ INFORMACE'!C37 -> 0.001279888365 | D28: - (w/w)
B29: HMF | C29: ='DALŠÍ INFORMACE'!C38 -> 0.0001999825571 | D29: - (w/w)
B30: oxid uhličitý | C30: ='DALŠÍ INFORMACE'!C39 -> 0.0009776925013 | D30: - (w/w)
B31: další anorganické látky | C31: ='DALŠÍ INFORMACE'!C40 -> 0.00950139349 | D31: - (w/w)
B32: celuloza | C32: ='DALŠÍ INFORMACE'!C41 -> 0.003033068782 | D32: - (w/w)
B33: xylan | C33: ='DALŠÍ INFORMACE'!C42 -> 0.0009754704729 | D33: - (w/w)
B34: arabinan | C34: ='DALŠÍ INFORMACE'!C43 -> 0.0001355437331 | D34: - (w/w)
B35: cukerné polymery | C35: ='DALŠÍ INFORMACE'!C44 -> 0.002579774986 | D35: - (w/w)
B36: zymo | C36: ='DALŠÍ INFORMACE'!C45 -> 0.002417566912 | D36: - (w/w)
B37: lignin | C37: ='DALŠÍ INFORMACE'!C46 -> 0.03166834893 | D37: - (w/w)
B38: sádra | C38: ='DALŠÍ INFORMACE'!C47 -> 6.221679554e-05 | D38: - (w/w)
B39: těžké alkoholy | C39: ='DALŠÍ INFORMACE'!C48 -> 0.0005516185533 | D39: - (w/w) | F39: v obou zdrojích považují přiboudlinu za zanedbatelnou, volba obsahu na listu "DALŠÍ INFORMACE"
B40: další nerozpustné látky | C40: ='DALŠÍ INFORMACE'!C49 -> 0.01026577126 | D40: - (w/w)
B42: ztráty ethanolu v přiboudlině (vedl. K-403) | C42: 1 | D42: % ze vstup ETH
B43: vstupující ethanol do rektifikační kolony K-403 | C43: =C6*0.99/(1-C42/100) -> 20 | D43: t/den
B44: ztráty ethanolu ve výpalkách (vedl. K-402) | C44: 2 | D44: % ze vstup ETH | F44: toto číslo je poměrně malé (zahrnuje jednostupňové propírání parou v K-421
B45: ethanol ve výpalkách reg. parou (vedl. K-402) | C45: 3 | D45: % ze vstup ETH
B46: vstupující ethanol do záparové kolony K-402 | C46: =C43/(1-(C44)/100) -> 20.40816327 | D46: t/den
B48: celkový hm. tok do záparové kolony K-402 | C48: =C46/C20 -> 369.9687609 | D48: t/den
B50: =_xlfn.CONCAT("F-402 celkový hm. průtok - ",B20) -> F-402 celkový hm. průtok - ethanol | C50: =C$48*C20 -> 20.40816327 | D50: t/den
B51: F-402 celkový hm. průtok - voda | C51: 308.1390139 | D51: t/den
B52: F-402 celkový hm. průtok - zbylé cukry (gl, xy, ar…) | C52: 1.497831761 | D52: t/den
B53: F-402 celkový hm. průtok - oligomery cukrů | C53: 2.850977249 | D53: t/den
B54: F-402 celkový hm. průtok - škrobový likér | C54: 1.199416322 | D54: t/den
B55: F-402 celkový hm. průtok - další rozpustné látky | C55: 7.876359003 | D55: t/den
B56: F-402 celkový hm. průtok - kyselina octová | C56: 4.322502415 | D56: t/den
B57: F-402 celkový hm. průtok - kys. sírová | C57: 0.1266004891 | D57: t/den
B58: F-402 celkový hm. průtok - furfural | C58: 0.4735187126 | D58: t/den
B59: F-402 celkový hm. průtok - HMF | C59: 0.07398729885 | D59: t/den
B60: F-402 celkový hm. průtok - oxid uhličitý | C60: 0.3617156833 | D60: t/den
B61: F-402 celkový hm. průtok - další anorganické látky | C61: 3.515218776 | D61: t/den
B62: F-402 celkový hm. průtok - celuloza | C62: 1.122140699 | D62: t/den
B63: F-402 celkový hm. průtok - xylan | C63: 0.3608936022 | D63: t/den
B64: F-402 celkový hm. průtok - arabinan | C64: 0.050146947 | D64: t/den
B65: F-402 celkový hm. průtok - cukerné polymery | C65: 0.9544361551 | D65: t/den
B66: F-402 celkový hm. průtok - zymo | C66: 0.894424235 | D66: t/den
B67: F-402 celkový hm. průtok - lignin | C67: =C$48*C37 -> 11.71629981 | D67: t/den
B68: F-402 celkový hm. průtok - sádra | C68: 0.02301827075 | D68: t/den
B69: F-402 celkový hm. průtok - těžké alkoholy | C69: 0.2040816327 | D69: t/den
B70: F-402 celkový hm. průtok - další nerozpustné látky | C70: 3.798014674 | D70: t/den
B72: celkový průtok zápary | C72: ='DATA A VÝPOČTY'!C48-'DATA A VÝPOČTY'!C86 -> 320.0798008 | D72: t/den
B73: potřebné teplo k odpaření přiboudliny, ethanolu a vody | C73: =(C88*'VLASTNOSTI LÁTEK'!H6+'DATA A VÝPOČTY'!C89*'VLASTNOSTI LÁTEK'!H4+SUM('DATA A VÝPOČTY'!C90:C94)*'VLASTNOSTI LÁTEK'!H12) -> 84631.0154 | D73: MJ/den
B74: koeficient navýšení (bezpečnost, přestup tepla, ohřátí) | C74: 1.2
B75: spotřeba páry v záparové koloně K-402 | C75: =C73/'VLASTNOSTI LÁTEK'!M5*C74 -> 49.55300372 | D75: t/den
B77: složení výstupu ze záparové kolony, nástřik K-403
B78: ethanol | C78: ='DALŠÍ INFORMACE'!C54 -> 0.3928550026 | D78: ="- w/w" -> - w/w | F78: převzato ze zdroje [0], pro orientaci dostačuje - výpočet z průtoků na listu "DALŠÍ INFORMACE"
B79: voda | C79: ='DALŠÍ INFORMACE'!C55 -> 0.5911282815 | D79: ="- w/w" -> - w/w
B80: škrobový likér | C80: ='DALŠÍ INFORMACE'!C58 -> 0.002317210079 | D80: - w/w
B81: kyselina octová | C81: ='DALŠÍ INFORMACE'!C60 -> 0.004139016624 | D81: - w/w
B82: furfural | C82: ='DALŠÍ INFORMACE'!C62 -> 0.004442651048 | D82: - w/w
B83: HMF | C83: ='DALŠÍ INFORMACE'!C63 -> 0.0006871726441 | D83: - w/w
B84: oxid uhličitý | C84: ='DALŠÍ INFORMACE'!C64 -> 0.0004634420158 | D84: - w/w
B86: celkový hm. tok nástřiku do K-403 | C86: =C43/C78-C46*0.01*(C45+C44) -> 49.8889601 | D86: t/den
B87: průtoky jednotlivých složek kolonou K-403
B88: =_xlfn.CONCAT("F-403 hm. průtok - ",B78) -> F-403 hm. průtok - ethanol | C88: =$C$86*C78+C45*0.01*C46 -> 20.21137245 | D88: t/den | F88: přepočet přes koncentrace - odkaz na listu "Další informace"
B89: =_xlfn.CONCAT("F-403 hm. průtok - ",B79) -> F-403 hm. průtok - voda | C89: =$C$86*C79 -> 29.49077525 | D89: t/den
B90: F-403 hm. průtok - škrobový likér | C90: 0.1156032012 | D90: t/den
B91: F-403 hm. průtok - kyselina octová | C91: 0.2064912352 | D91: t/den
B92: F-403 hm. průtok - furfural | C92: 0.2216392409 | D92: t/den
B93: F-403 hm. průtok - HMF | C93: 0.03428232862 | D93: t/den
B94: F-403 hm. průtok - oxid uhličitý | C94: 0.02312064024 | D94: t/den
B96: průtok "suché" přiboudliny K-403 | C96: =SUM(C90:C94) -> 0.6011366461 | D96: t/den
B97: obsah vody v příboudlině z nástřiku | C97: =C89-(1-C7)*C6 -> 28.47118946 | D97: t/den
B98: celkový průtok přiboudliny | C98: =C97+C96+C108 -> 36.21518325
B100: teplo potřebné k vypaření ethanolu a vody | C100: =C8*C7*'VLASTNOSTI LÁTEK'!H6+'VLASTNOSTI LÁTEK'!H4*'DATA A VÝPOČTY'!C8*(1-'DATA A VÝPOČTY'!C7) -> 19591.80331 | D100: MJ/den
B101: teoretický přívod páry do kolony K-403 | C101: =C100/'VLASTNOSTI LÁTEK'!M5 -> 9.559465261 | D101: t/den
B102: koeficient navýšení (bezpečnost, přestup tepla, ohřátí) | C102: 1.4
B103: přívod páry do kolony K-403 | C103: =C102*C101 -> 13.38325137
B105: obsah ethanolu v zápaře | C105: =(C45+C44)*0.01*C50 -> 1.020408163 | D105: t/den
B106: z toho regenerováno | C106: =C105*(C45/(C45+C44)) -> 0.612244898 | D106: t/den
B107: přebytek páry nad ethanolem k regeneraci | C107: 7 | D107: w(páry)/w(eth)
B108: pára procházející pračkou (k vypírání) | C108: =C107*C105 -> 7.142857143 | D108: t/den
B110: kondenzát záparové kolony | C110: =C75 -> 49.55300372 | D110: t/den
B111: kondenzát rektifikační kolony | C111: =C103 -> 13.38325137 | D111: t/den
B113: množství vody v sušině z odstředivky | C113: 0.01 | D113: w(vody)/w(sušiny)
B114: množství sušiny v zápaře (dle [13]) | C114: 0.09 | D114: "- hm. | E114: [13]
B115: množství pevné fáze (vstup) | C115: =C72*C114 -> 28.80718207 | D115: t/den
B116: množství tekuté fáze (vstup) | C116: =(C72-C115)*ODS -> 291.2726187 | D116: t/den
B117: vystupující pevná fáze | C117: =(C115/(1-C113))*ODS -> 29.09816371 | D117: t/den
B118: vystupující kapalná fáze | C118: =(C116+C115-C117)*ODS -> 290.9816371 | D118: t/den
B120: stupeň zahuštění syrupu (poměr vody k bezvodému syr.) | C120: 0.3 | D120: w(vody)/w("suchy")
B121: množství bezvodého syrupu | C121: =C122*C209*'DALŠÍ INFORMACE'!F84/100 -> 24.88674917 | D121: t/den
B122: část ligninu rozpuštěná (v poměru k vázané) | C122: 0.9 | D122: (-)
B123: množství zahuštěného syrupu | C123: =(C121*(1+C120))*ODP -> 32.35277392 | D123: t/den
B124: množství odpařené vody | C124: =(C118-C123)*ODP -> 258.6288632 | D124: t/den
B125: poměr spotřebované páry k odpařené vodě | C125: 1.2 | D125: w(pára)/w(odp. v.)
B126: poměr spotřebované páry k odpařené vodě | C126: =(C124*C125)*ODP -> 310.3546358 | D126: w(pára)/w(odp. v.)
B128: teplo potřebné k zkapalnění eth, přib. a vody v K-412 | C128: =C73 -> 84631.0154 | D128: MJ/den | E128: vody: | F128: C130/'VLASTNOSTI LÁTEK'!D4/'DATA A VÝPOČTY'!C131
B129: výkon chladiče | C129: =C128/24/3600 -> 0.9795256412 | D129: MW | E129: el. výkon: | F129: C130/3,6*1000
B130: chladící výkon | C130: =C129*24*1000 -> 23508.61539 | D130: kWh/den
A131: S3
B132: výstup z SEKCE 3 (SSF) - výstup z K-306 | C132: =C48 -> 369.9687609 | D132: t/den
B133: přibližný objemový průtok | C133: =MROUND(C132/'VLASTNOSTI LÁTEK'!B4*1000*1.08,10) -> 400 | D133: m^3/den
D135: Regulace fermentorů | E135: fer. 301 | F135: fer. 302 | G135: fer. 303 | H135: fer. 304
D136: požad. teplota | E136: 65 | F136: 50 | G136: 41 | H136: 41 | I136: [13]
D137: vstupní teplota z PT | E137: 85
D138: chlazení (kWh/den) | E138: =(E137-E136)*'VLASTNOSTI LÁTEK'!$D$4*$C$132*1000/24/3600*24 -> 8591.496781 | F138: =(E136-F136)*$C$132*'VLASTNOSTI LÁTEK'!$D$4*1000/24/3600*24 -> 6443.622586 | G138: =(F136-G136)*$C$132*'VLASTNOSTI LÁTEK'!$D$4*1000/24/3600*24 -> 3866.173552
D139: teplota souč. (prům.) | E139: =MODEL!AH1 -> 60 | F139: =MODEL!AH2 -> 45 | G139: =MODEL!AH3 -> 45 | H139: =MODEL!AH4 -> 40
D140: rozdíl teplot | E140: =E139-E136 -> -5 | F140: =F139-F136 -> -5 | G140: =G139-G136 -> 4 | H140: =H139-H136 -> -1
D141: dovolené ohřátí chlad. | E141: 25
D142: dovolené ochlazení t. | E142: 25
D143: teplota chladící v. | E143: =MODEL!T3 -> 5
D144: teplota ohřív. v. | E144: =MODEL!T2 -> 50
D145: chlad / ohřev (CH / O) | E145: =IF(E140<0,"O","CH") -> O | F145: =IF(F140<0,"O","CH") -> O | G145: =IF(G140<0,"O","CH") -> CH | H145: =IF(H140<0,"O","CH") -> O
D146: spotřeba vody - ohřev | E146: =IF(E145="O",-E140*$C$132/$E142,0) -> 73.99375218 | F146: =IF(F145="O",-F140*$C$132/$E142,0) -> 73.99375218 | G146: =IF(G145="O",-G140*$C$132/$E142,0) -> 0 | H146: =IF(H145="O",-H140*$C$132/$E142,0) -> 14.79875044
D147: spotřeba vody - chlad | E147: =IF(E145="CH",E140*$C$132/$E142,0) -> 0 | F147: =IF(F145="CH",F140*$C$132/$E142,0) -> 0 | G147: =IF(G145="CH",G140*$C$132/$E142,0) -> 59.19500175 | H147: =IF(H145="CH",H140*$C$132/$E142,0) -> 0
B149: spotřeba páry pro regulaci fermentorů | C149: =SUM(E146:H146)*(E144-E143)*'VLASTNOSTI LÁTEK'!D4/('VLASTNOSTI LÁTEK'!M5) -> 14.94052004 | D149: t/den
B151: objem fermentoru 1 | C151: ='DATA A VÝPOČTY'!C$132/'VLASTNOSTI LÁTEK'!B$13*'DATA A VÝPOČTY'!C158*1000 -> 344.1569869 | D151: m^3
B152: objem fermentoru 2 | C152: ='DATA A VÝPOČTY'!C$132/'VLASTNOSTI LÁTEK'!B$13*'DATA A VÝPOČTY'!C159*1000 -> 516.2354804 | D152: m^3
B153: objem fermentoru 3 | C153: ='DATA A VÝPOČTY'!C$132/'VLASTNOSTI LÁTEK'!B$13*'DATA A VÝPOČTY'!C160*1000 -> 344.1569869 | D153: m^3
B154: objem fermentoru 4 | C154: ='DATA A VÝPOČTY'!C$132/'VLASTNOSTI LÁTEK'!B$13*'DATA A VÝPOČTY'!C161*1000 -> 516.2354804 | D154: m^3
B155: rezerva akumulačního tanku | C155: 0.5 | D155: den
B156: objem akumulačního tanku | C156: =C133*(1+C155) -> 600 | D156: m^3
B158: doba zdržení v fermentoru 1 (B-301) | C158: =MODEL!$AN1 -> 1 | D158: den
B159: doba zdržení v fermentoru 2 (B-302) | C159: =MODEL!$AN2 -> 1.5 | D159: den
B160: doba zdržení v fermentoru 3 (B-303) | C160: =MODEL!$AN3 -> 1 | D160: den
B161: doba zdržení v fermentoru 4 (B-304) | C161: =MODEL!$AN4 -> 1.5 | D161: den
B163: měrný míchací příkon (fermentory) | C163: 60 | D163: W/m^3
B164: měrný míchací příkon (akumulační tank) | C164: 100 | D164: W/m^3
B165: zvětš. faktor pro míchadla. | C165: 2.2 | D165: -
B167: výkon motoru fermentoru 1 | C167: =C$163*C151*24/1000*C165 -> 1090.289335 | D167: kW*h/den | F167: (kont. míchání - na straně bezpečnosti)
B168: výkon motoru fermentoru 2 | C168: =C$163*C152*24/1000*C165 -> 1635.434002 | D168: kW*h/den
B169: výkon motoru fermentoru 3 | C169: =C$163*C153*24/1000*C165 -> 1090.289335 | D169: kW*h/den
B170: výkon motoru fermentoru 4 | C170: =C$163*C154*24/1000*C165 -> 1635.434002 | D170: kW*h/den
B171: výkon motoru akumulačního tanku K-306 | C171: =C164*C156*24/1000*C165 -> 3168 | D171: kW*h/den
B173: C6H12O6 ---> 2*C2H5OH + 2*CO2 | C173: rovnice kvašení cukrů
B174: tato rovnice je uvedena jako charakteristická rovnice pro kvašení a uvažujeme, že probíha pouze ta - je z ní určen hmotnostní poměr vznikajícího CO2 k ethanol
B175: n(cukry) | C175: 1 | D175: mol
B176: n(ethanol) | C176: 2 | D176: mol
B177: n(CO2) | C177: 2 | D177: mol
B179: m_reakt(cukry) | C179: =C175*'VLASTNOSTI LÁTEK'!F15 -> 180.12 | D179: kg/reakt
B180: m_reakt(ethanol) | C180: =C176*'VLASTNOSTI LÁTEK'!F6 -> 92.14 | D180: kg/reakt
B181: m_reakt(CO2) | C181: =C177*'VLASTNOSTI LÁTEK'!F14 -> 88.12 | D181: kg/reakt
B183: poměr cukru k ethanolu | C183: =C179/C180 -> 1.954851313 | D183: ="- w(cukr)/w(eth)" -> - w(cukr)/w(eth)
B184: poměr CO2 k ethanolu | C184: =C181/C180 -> 0.9563707402 | D184: ="- w(CO2)/w(eth)" -> - w(CO2)/w(eth)
B186: konverze škrobů a celulozy na ethanol (souhrnná) | C186: ='DALŠÍ INFORMACE'!H35 -> 0.7536658672 | D186: ="- w(eth)/w(vstup)" -> - w(eth)/w(vstup) | F186: z původní hmotnosti přeměněno až na ethanol
B187: konverze škrobů a celulozy na cukry (souhrnná) | C187: ='DALŠÍ INFORMACE'!H36 -> 0.1605998968 | D187: ="- w(cukr)/w(vstup)" -> - w(cukr)/w(vstup)
B188: zbylý škrob a celuloza | C188: ='DALŠÍ INFORMACE'!H37 -> 0.08573423601 | D188: ="- w(zbytek)/w(vstup)" -> - w(zbytek)/w(vstup)
B189: z množství ethanolu určeno
B190: množství CO2 | C190: =C184*C88 -> 19.32956523 | D190: t/den | F190: (pozn. - přibližné - vychází ze zjednodušené rovnice)
B191: (pro jednoduchost výpočtu zanedbány ztráty ostatních složek s CO2)
B193: hmota vstupující do fermentorů (vč. CO2) | C193: =C190+C132 -> 389.2983261 | D193: t/den
B194: objem | C194: =C193/'VLASTNOSTI LÁTEK'!B16*1000 -> 360.4614131 | D194: m^3/den
B195: měrný míchací výkon | C195: 250 | D195: W/m^3
B196: faktor navýšení pro míchadla | C196: 2.2 | D196: -
B197: spotřeba energie míchadel | C197: =C195*C194/1000*24*C196 -> 4758.090653 | D197: kWh/den
A198: S1+S2,
B199: všechny složky vstupující do fermentorů (bez vody) | C199: =C190+SUM(C52:C70)+C50 -> 81.15931223 | D199: t/den | F199: z původní hmotnosti přeměněno až na ethanol
B200: pevných nečistot v klasu | C200: =MODEL!L4 -> 5 | D200: % hm. | F200: volba v modelu
B201: železných (mag. separovatelných) nečistot | C201: =MODEL!L5 -> 3 | D201: % hm.
B202: čistých klasů | C202: =C199/(SUM('DALŠÍ INFORMACE'!E82:E86)) -> 130.2460705 | D202: t/den
B203: vody z klasů | C203: =C202*'DALŠÍ INFORMACE'!E81 -> 49.08675826 | D203: t/den
B205: celkem klasů | C205: =C202/(100-C201-C200)*100 -> 141.5718158 | D205: t/den
B207: poměr promývací vody k klasům | C207: =MODEL!T5 -> 1 | D207: w/w
B208: množství promývací vody | C208: =C207*C205 -> 141.5718158 | D208: t/den
B209: čistých klasů | C209: =C202 -> 130.2460705 | D209: t/den
B211: poměr páry k vstup. klasům (1 reaktor PT) | C211: 0.1 | D211: w/w
B212: pára do 1. PT reaktoru | C212: =C211*C202 -> 13.02460705 | D212: t/den
B213: doba zdržení v 1. PT | C213: 30 | D213: min
B214: koef. navýšení objemu (prodlevy, čerpání) | C214: 2 | D214: -
B215: koef. navýšení objemu (šnekový dopravník, hřídel) | C215: 2.5 | D215: -
B216: čistý objem reaktoru | C216: =C212/24*C213/60*1000*C214*C215/'VLASTNOSTI LÁTEK'!$B$21 -> 1.25623139 | D216: m^3
B217: poměr NT páry (recykl) ku vstupu ostré páry | C217: 0.3 | D217: -
B218: recykl NT páry | C218: =C217*C212 -> 3.907382115 | D218: t/den
B220: voda a klasy z 1. PT reaktoru | C220: =C212+C209 -> 143.2706775 | D220: t/den
B222: kys. sírova - koncentrace | C222: 10 | D222: % hm.
B223: poměr kys. sírové k hmot. vstup do PT sekce | C223: 0.5 | D223: % hm
B224: =_xlfn.CONCAT("spotřeba kys. sírové (",C222,"%)") -> spotřeba kys. sírové (10%) | C224: ='DATA A VÝPOČTY'!C209*'DATA A VÝPOČTY'!C223/'DATA A VÝPOČTY'!C222 -> 6.512303525 | D224: t/den
B225: vstupy do 2. PT reaktoru bez čisté vody | C225: =C224+C220 -> 149.7829811 | D225: t/den | F225: provedené zanedbání - neutralizace vápnem mezi zař. P-215 a P-217 nemění hmotnost (přidání vody, odeb. kys.)
B227: celkem z B-202 | C227: =C220+C218 -> 147.1780597 | D227: t/den
B229: H2SO4 + CaO ---> CaSO4 + H2O | C229: rovnice neutralizace
B230: tato rovnice je uvedena jako charakteristická rovnice pro neutralizaci. "1 reakce" odpovídá zreagování 1 kmol H2SO4.
B231: n(H2SO4) | C231: 1 | D231: kmol
B232: n(CaO) | C232: 1 | D232: kmol
B233: n(CaSO4) | C233: 1 | D233: kmol
B234: n(H2O | C234: 1 | D234: kmol
B236: m_r(H2SO4) | C236: =C231*'VLASTNOSTI LÁTEK'!F17 -> 98.02 | D236: kg/reakt
... 62 more rows

Sheet VLASTNOSTI LÁTEK
B1: ρ | D1: cp | F1: M | H1: dH(l-g) | K1: dH(l-g) | M1: měrné přiváděné
B2: hustota /20°C | D2: tep. kap. /~20°C | F2: molární hm. | H2: m. skup. výp. tep. | K2: m. skup. výp. tep. | M2: teplo parou | N2: přehřátí páry
B3: kg/m^3 | D3: kJ/kg*K | F3: kg/kmol | H3: kJ/kg | I3: při tlaku (kPa) | K3: kJ/kmol | M3: kJ/kg | N3: 45
A4: voda | B4: 998 | C4: [8] | D4: 4.18 | E4: [7] | F4: 18.02 | G4: [7] | H4: 2257 | I4: 101 | J4: [7]
D5: ='DALŠÍ INFORMACE'!B136 -> 1.960087714 | H5: ='DALŠÍ INFORMACE'!B19 -> 1961.2625 | I5: 1400 | J5: [7] | M5: =H5+D5*(N3) -> 2049.466447
A6: ethanol | B6: 789.3 | C6: [8] | D6: ='DALŠÍ INFORMACE'!B125 -> 2.439765574 | E6: [7] | F6: 46.07 | G6: [7] | H6: ='DALŠÍ INFORMACE'!C16 -> 868.2439766 | I6: 101 | J6: [7]
B7: ='DALŠÍ INFORMACE'!B106 -> 2.565941701 | C7: * | O7: =_xlfn.CONCAT("*v plynné formě na mezi sytosti - T=",'DALŠÍ INFORMACE'!B104," K, p=",'DALŠÍ INFORMACE'!B102," bar") -> *v plynné formě na mezi sytosti - T=366,945387343616 K, p=1,7 bar
A8: HMF | F8: 126.11 | H8: =K8/F8 -> 661.3274126 | I8: 101 | K8: 83400
A9: furan | F9: 68.074 | H9: =K9/F9 -> 407.0570262 | I9: 101 | K9: 27710
A10: butanol | F10: 74.1216 | H10: =K10/F10 -> 701.5498856 | I10: 101 | K10: 52000
A11: kyselina octová | F11: 60.052 | H11: =K11/F11 -> 859.2553121 | I11: 101 | K11: 51600
A12: přiboudlina | H12: =H6 -> 868.2439766 | I12: =I6 -> 101 | J12: ** | O12: **kvůli bezpečnosti a nestálosti složení volíme nejhorší možnost (největší výp. teplo)
A13: zfermentovaná směs | B13: 1075 | C13: [0]
A14: oxid uhličitý | F14: 44.06
A15: glukoza | F15: =6*12+12.12+6*16 -> 180.12
A16: směs po Pre-treatment | B16: 1080
A17: kys. sírová | F17: =2.02+32+4*16 -> 98.02
A18: vápno (CaO) | F18: 56.08
A19: síran vápenatý (CaSO4) | F19: 136.14
A20: kukuřičná siláž | B20: 700 | C20: [15]
A21: směs v Pre-treatment sekci | B21: =B16 -> 1080 | C21: *** | O21: ***pro výpočet dostačující zjednodušení = hustota stejná jako v sekci 3 (po PT)

Sheet ZAŘÍZENÍ
A1: sekce | B1: ozn. | C1: zařízení | D1: počet | E1: jednotka | F1: a | G1: b | H1: n | I1: S | J1: cena ($)** | K1: cena (Kč) | M1: celková cena | O1: =I74 -> 232755120
M2: kurz | O2: 23
A3: 1 | B3: B-101 | C3: silo pro uskladnění klasů | D3: ='DATA A VÝPOČTY'!C296 -> 3 | E3: m^3 | F3: 5700 | G3: 700 | H3: 0.7 | I3: ='DATA A VÝPOČTY'!C297 -> 1350 | J3: =(F3+G3*(I3^H3))*D3 -> 343276.6986 | K3: =ROUNDUP(J3*O$2,-3) -> 7896000
A4: 1 | B4: H-102 | C4: pásový dopravník | D4: 1 | E4: - | F4: - | G4: - | H4: - | I4: - | J4: 0 | K4: =ROUNDUP(J4*O$2,-3) -> 0
A5: 1 | B5: F-103 | C5: promývací dopravník (šikmý)*** | D5: 1 | E5: m | F5: 22000 | G5: 350 | H5: 1 | I5: =I3/500 -> 2.7 | J5: =(F5+G5*(I5^H5))*D5 -> 22945 | K5: 528000
A6: 1 | B6: P-104 | C6: čerpadlo na vodu | D6: 1 | E6: - | F6: - | G6: - | H6: - | I6: - | J6: 0 | K6: 0
A7: 1 | B7: P-105 | C7: čerpadlo na vodu | D7: 1 | E7: - | F7: - | G7: - | H7: - | I7: - | J7: 0 | K7: 0
A8: 1 | B8: H-106 | C8: pásový dopravník | D8: 1 | E8: - | F8: - | G8: - | H8: - | I8: - | J8: 0 | K8: 0
A9: 1 | B9: F-107 | C9: magnetický odlučovač | D9: 1 | E9: - | F9: - | G9: - | H9: - | I9: - | J9: 0 | K9: 0
A10: 1 | B10: H-108 | C10: pásový dopravník | D10: 1 | E10: - | F10: - | G10: - | H10: - | I10: - | J10: 0 | K10: 0
A11: 1 | B11: Z-109 | C11: nožový drtič | D11: 1 | E11: t/h | F11: 600 | G11: 9950 | H11: 0.5 | I11: =MODEL!X23 -> 130.2460705 | J11: =(F11+G11*(I11^H11))*D11 -> 114154.7735 | K11: 2626000
A12: 1 | B12: B-110 | C12: zásobník nasekaných klasů | D12: 1 | E12: m^3 | F12: 5700 | G12: 700 | H12: 0.7 | I12: =MODEL!AG23*1000/'VLASTNOSTI LÁTEK'!B20 -> 186.065815 | J12: =(F12+G12*(I12^H12))*D12 -> 32855.92826 | K12: 756000
A13: 2 | B13: H-201 | C13: šnekový dopravník z zásobníku do reak. | D13: 1 | E13: - | F13: - | G13: - | H13: - | I13: - | J13: 0 | K13: 0
A14: 2 | B14: B-202 | C14: 1. pre-treatment reaktor | D14: 1 | E14: m^3 | F14: 14000 | G14: 15400 | H14: 0.7 | I14: ='DATA A VÝPOČTY'!C216 -> 1.25623139 | J14: =(F14+G14*(I14^H14))*D14 -> 32066.31048 | K14: 738000
A15: 2 | B15: H-203 | C15: šnekový dopravník s těsnícím prvkem | D15: 1 | E15: - | F15: - | G15: - | H15: - | I15: - | J15: 0 | K15: 0
A16: 2 | B16: B-204 | C16: 2. pre-treatment reaktor | D16: 1 | E16: m^3 | F16: 14000 | G16: 15400 | H16: 0.7 | I16: ='DATA A VÝPOČTY'!C268 -> 2.513628952 | J16: =(F16+G16*(I16^H16))*D16 -> 43358.34298 | K16: 998000
A17: 2 | B17: H-205 | C17: šnekový dopravník s těsnícím prvkem | D17: 1 | E17: - | F17: - | G17: - | H17: - | I17: - | J17: =0.1*J16 -> 4335.834298 | K17: 100000
A18: 2 | B18: B-206 | C18: flash-expanzní nádoba | D18: 1 | E18: - | F18: - | G18: - | H18: - | I18: - | J18: =J16*1.1 -> 47694.17728 | K18: 1097000 | L18: (POZN)
A19: 2 | B19: H-207 | C19: dopravník | D19: 1 | E19: - | F19: - | G19: - | H19: - | I19: - | J19: 0 | K19: 0
A20: 2 | B20: F-208 | C20: tlakový filtr | D20: 1 | E20: m^2 | F20: -45000 | G20: 56000 | H20: 0.4 | I20: ='DATA A VÝPOČTY'!C302 -> 37.5993666 | J20: =(F20+G20*(I20^H20))*D20 -> 193924.2539 | K20: 4461000
A21: 2 | B21: H-209 | C21: šnekový dopravník | D21: 1 | E21: - | F21: - | G21: - | H21: - | I21: - | J21: 0 | K21: 0
A22: 2 | B22: B-210 | C22: homogenizační a akumulační tank | D22: 1 | E22: m^3 | F22: 5700 | G22: 700 | H22: 0.6 | I22: ='DATA A VÝPOČTY'!C305 -> 180.2307065 | J22: =(F22+G22*(I22^H22))*D22 -> 21497.7527 | K22: 495000
A23: 2 | B23: M-211 | C23: elektromotor pro pohon míchadla | D23: 1 | E23: - | F23: - | G23: - | H23: - | I23: - | J23: 0 | K23: 0
A24: 2 | B24: B-212 | C24: neutralizační reaktor | D24: 1 | E24: m^3 | F24: 5700 | G24: 700 | H24: 0.7 | I24: ='DATA A VÝPOČTY'!C308 -> 7.509612773 | J24: =(F24+G24*(I24^H24))*D24 -> 8570.981014 | K24: 198000
A25: 2 | B25: M-213 | C25: elektromotor pro pohon míchadla | D25: 1 | E25: - | F25: - | G25: - | H25: - | I25: - | J25: 0 | K25: 0
A26: 2 | B26: H-214 | C26: dopravník na vápno | D26: 1 | E26: - | F26: - | G26: - | H26: - | I26: - | J26: 0 | K26: 0
A27: 2 | B27: P-215 | C27: čerpadlo na kapalnou fázi | D27: 1 | E27: - | F27: - | G27: - | H27: - | I27: - | J27: 0 | K27: 0
A28: 2 | B28: F-216 | C28: kalolis | D28: 1 | E28: m^2 | F28: -35000 | G28: 58000 | H28: 0.3 | I28: =I20 -> 37.5993666 | J28: =(F28+G28*(I28^H28))*D28 -> 137179.7814 | K28: 3156000
A29: 2 | B29: P-217 | C29: čerpadlo na kapalnou fázi | D29: 1 | E29: - | F29: - | G29: - | H29: - | I29: - | J29: 0 | K29: 0
A30: 2 | B30: H-218 | C30: dopravník na sádru | D30: 1 | E30: - | F30: - | G30: - | H30: - | I30: - | J30: 0 | K30: 0
A31: 2 | B31: V-219 | C31: kompresor na NT páru*** | D31: 1 | E31: kW | F31: 8400 | G31: 3100 | H31: 0.6 | I31: =I51*0.6 -> 3.114506152 | J31: =(F31+G31*(I31^H31))*D31 -> 14529.07887 | K31: 335000
A32: 3 | B32: B-301 - B-304 | C32: fermentor* | D32: 4 | E32: m^3 | F32: 10000 | G32: 1200 | H32: 0.7 | I32: =AVERAGE(MODEL!H119,MODEL!P119,MODEL!Z119,MODEL!AI119) -> 430.1962336 | J32: =(F32+G32*(I32^H32))*D32 -> 374817.277 | K32: 8621000
A33: 3 | B33: B-306 | C33: akumulační a homogenizační tank | D33: 1 | E33: m^3 | F33: 5700 | G33: 700 | H33: 0.7 | I33: =MODEL!AQ124 -> 600 | J33: =(F33+G33*(I33^H33))*D33 -> 67331.6671 | K33: 1549000
A34: 3 | B34: B-311 - B-315 | C34: elektromotor pro pohon míchadla | D34: 5 | E34: - | F34: - | G34: - | H34: - | I34: - | J34: 0 | K34: 0
A35: 3 | B35: P-321 - P-325 | C35: čerpadla pro čerpání kapalné fáze | D35: 5 | E35: - | F35: - | G35: - | H35: - | I35: - | J35: 0 | K35: 0
A36: 3 | B36: P-331 - P334 | C36: čerpadla regulačních okruhů | D36: 4 | E36: - | F36: - | G36: - | H36: - | I36: - | J36: 0 | K36: 0
A37: 3 | B37: W-341 | C37: kondenzační výměník | D37: 1 | E37: m^2 | F37: 10000 | G37: 88 | H37: 1 | I37: =MODEL!F143*'VLASTNOSTI LÁTEK'!M5/ZAŘÍZENÍ!E82/ZAŘÍZENÍ!E83*1000 -> 2041.339635 | J37: =(F37+G37*(I37^H37))*D37 -> 189637.8879 | K37: 4362000
A38: 3 | B38: P-342, P-343 | C38: čerpadla okruhů pro regulaci pH | D38: 2 | E38: - | F38: - | G38: - | H38: - | I38: - | J38: 0 | K38: 0
A39: 3 | B39: P-344 | C39: čerpadlo na kondenzát | D39: 1 | E39: - | F39: - | G39: - | H39: - | I39: - | J39: 0 | K39: 0
A40: 4 | B40: P-401 | C40: čerpadlo na záparu | D40: 1 | E40: - | F40: - | G40: - | H40: - | I40: - | J40: 0 | K40: 0
A41: 4 | B41: K-402 | C41: záparová kolona (klobouková)*** | D41: 1 | E41: kg (plášť) | F41: -10000 | G41: 600 | H41: 0.6 | I41: =MODEL!N162*500 -> 184984.3805 | J41: =(F41+G41*(I41^H41))*D41 -> 857825.2579 | K41: 19730000 | L41: vztaženo k hmotnostnímu nástřiku do kolony, poměr vzhledem k odhadům na alibabě
A42: 4 | B42: K-403 | C42: destilační kolona (kloboučková)*)*** | D42: 1 | E42: kg (plášť) | F42: -10000 | G42: 650 | H42: 0.7 | I42: =MODEL!V167*800 -> 39911.16808 | J42: =(F42+G42*(I42^H42))*D42 -> 1070636.08 | K42: 24625000
A43: 4 | B43: F-404 | C43: molekulová sítá | D43: 1 | E43: - | F43: - | G43: - | H43: - | I43: - | J43: =0.1*J41 -> 85782.52579 | K43: 1973000 | L43: 10% ZÁP KOP
A44: 4 | B44: B-405 | C44: kondenzátor za rektifikační kolonou*** | D44: 1 | E44: - | F44: - | G44: - | H44: - | I44: - | J44: =0.05*J42 -> 53531.804 | K44: 1232000 | L44: 5 % ceny destilační kolony
A45: 4 | B45: W-406 | C45: výměník pro dochlazení | D45: 1 | E45: m^2 | F45: 10000 | G45: 88 | H45: 1 | I45: =MODEL!AM164/ZAŘÍZENÍ!E84/ZAŘÍZENÍ!G82*1000 -> 12.7344683 | J45: =(F45+G45*(I45^H45))*D45 -> 11120.63321 | K45: 256000
A46: 4 | B46: P-407 | C46: čerpadlo na chladící vodu | D46: 1 | E46: - | F46: - | G46: - | H46: - | I46: - | J46: 0 | K46: 0
A47: 4 | B47: P-408 | C47: čerpadlo na chladící vodu | D47: 1 | E47: - | F47: - | G47: - | H47: - | I47: - | J47: 0 | K47: 0
A48: 4 | B48: W-410 | C48: utilizační výměník brýdy z flash)*** | D48: 1 | E48: m^2 | F48: 10000 | G48: 88 | H48: 1 | I48: =I37*0.45 -> 918.6028359 | J48: =(F48+G48*(I48^H48))*D48 -> 90837.04956 | K48: 2090000
A49: 4 | B49: W-411 | C49: utilizační výměník (zápara)*** | D49: 1 | E49: m^2 | F49: 10000 | G49: 88 | H49: 1 | I49: =I37*0.7 -> 1428.937745 | J49: =(F49+G49*(I49^H49))*D49 -> 135746.5215 | K49: 3123000
A50: 4 | B50: K-412 | C50: kondenzátor na páry ze záparové kol.* | D50: 1 | E50: - | F50: - | G50: - | H50: - | I50: - | J50: =J41*0.1 -> 85782.52579 | K50: 1973000 | L50: 10 % ceny záparové kolony
A51: 4 | B51: V-413 | C51: kompresor před molekulovými síty | D51: 1 | E51: kW | F51: 8400 | G51: 3100 | H51: 0.6 | I51: ='DATA A VÝPOČTY'!C286/3600/24 -> 5.190843586 | J51: =(F51+G51*(I51^H51))*D51 -> 16727.30477 | K51: 385000
A52: 4 | B52: P-414 | C52: čerpadlo na záparu | D52: 1 | E52: - | F52: - | G52: - | H52: - | I52: - | J52: 0 | K52: 0
A53: 4 | B53: P-415 | C53: čerpadlo pro nástřik do destilační kolony | D53: 1 | E53: - | F53: - | G53: - | H53: - | I53: - | J53: 0 | K53: 0
A54: 4 | B54: B-421 | C54: parní pračka na záparu | D54: 1 | E54: - | F54: - | G54: - | H54: - | I54: - | J54: =J18 -> 47694.17728 | K54: =ROUNDUP(J54*O$2,-3) -> 1097000 | L54: předp. cena jako u flash reaktoru v PT sekci
A55: 4 | B55: V-422 | C55: ventilátor na páru s ethanolem z pračky*** | D55: 1 | E55: - | F55: - | G55: - | H55: - | I55: - | J55: =J51*2 -> 33454.60953 | K55: 770000
A56: 4 | B56: F-431 | C56: odstředivka pro separaci sušiny ze zápary | D56: =ODS -> 1 | E56: kW | F56: 37000 | G56: 1200 | H56: 1.2 | I56: ='DATA A VÝPOČTY'!C280/24 -> 168.0418954 | J56: =(F56+G56*(I56^H56))*D56*ODS -> 598930.1466 | K56: 13776000
A57: 4 | B57: T-432 | C57: odparka pro koncentraci syrupu | D57: =ODS*ODP -> 1 | E57: m^2 | F57: 29000 | G57: 53500 | H57: 0.6 | I57: =0.03*MODEL!AM179/24 -> 0.323286079 | J57: =(F57+G57*(I57^H57))*D57*ODP -> 56171.02264 | K57: 1292000
A58: 4 | B58: B-433 | C58: akumulační nádrž na odstředěnou tekutinu | D58: =ODS*ODP -> 1 | E58: m^3 | F58: 5700 | G58: 700 | H58: 0.7 | I58: =MODEL!AA199/12/'VLASTNOSTI LÁTEK'!B4*1000 -> 24.32136095 | J58: =(F58+G58*(I58^H58))*D58 -> 12235.66151 | K58: 282000 | L58: doba zdržení 2 hodiny, hustota jako voda
A59: 4 | B59: P-434 | C59: čerpadlo na zředěný syrup | D59: =ODS*ODP -> 1 | E59: - | F59: - | G59: - | H59: - | I59: - | J59: 0 | K59: 0
I60: suma | J60: =SUM(J3:J59) -> 4804651.065 | K60: =SUM(K3:K59) -> 110520000
F62: další zařízení tvoří | I62: 30 | J62: % ceny velkých zařízení
F63: cena dalších zařízené | I63: =K60*I62/100 -> 33156000
F64: CELKEM ZA ZAŘÍZENÍ: | I64: =K60+I63 -> 143676000
F65: vedlejší instalace (kons., reg…) | I65: 30 | J65: % ceny všech zařízení
F66: cena instalací | I66: =I65/100*I64 -> 43102800
F67: projektování | I67: 15 | J67: % ceny všech zařízení
F68: cena projektování | I68: =I67/100*I64 -> 21551400
F69: rezerva | I69: 5 | J69: % ceny všech zařízení
F70: rezerva (abs. hodnota) | I70: =I69/100*I64 -> 7183800
F72: design faktor | I72: 8 | J72: % celkové ceny (CAPEX)
F73: CAPEX | I73: =I70+I68+I66+I64 -> 215514000
F74: VÝSLEDNÝ CAPEX | I74: =I73*(1+I72/100) -> 232755120
A76: pozn. k výpočtům
A77: * výpočtové konstanty navýšeny kvůli atypičnosti zařízení
A78: =_xlfn.CONCAT("** 'nulové' ceny představují zařízení, jejichž cena se odvodí z ceny velkých zařízení (",I62," % ceny z velkých zařízení)") -> ** 'nulové' ceny představují zařízení, jejichž cena se odvodí z ceny velkých zařízení (30 % ceny z velkých zařízení)
A79: *** odhad hodnoty S (nebo ceny) na základě porovnání s ostatními určenými (kvůli interaktivnosti vztaženo k jinému zařízení) - (viz kap. 4.4.3 v DP)
A81: • uvažován jednotný součinitel přestupu tepla u výměníků kondenzačních | D81: k= | E81: 1100 | F81: W/m^2/K = | G81: =E81*3600*24/1000 -> 95040 | H81: kWh/(m^2*K*den)
A82: • uvažován jednotný součinitel přestupu tepla u výměníků vodních | D82: k= | E82: 500 | F82: W/m^2/K = | G82: =E82*3600*24/1000 -> 43200 | H82: kWh/(m^2*K*den) | K82: [tep. pr.]
A83: • uvažován jednotný teplotní log. spád pro páru | D83: dTln= | E83: 30 | F83: K
A84: • uvažován jednotný teplotní log. spád pro vodu | D84: dTln= | E84: 10 | F84: K

Sheet PROUDY A EKONOMIKA
A3: energie - náklady | B3: jedn. mn. | C3: množství | D3: jed. c. | E3: dop. cena. | F3: cena | G3: komentář | N3: cena hrub. | O3: koef. | P3: cena celk. | Q3: komentář
A4: pára | B4: t/den | C4: =MODEL!$AT$1 -> 447.4908326 | D4: Kč/t | E4: 900 | F4: 900 | G4: 10 - 30 €/t ~ 250 - 900 Kč/t, v roce 2000, uvažována horní hranice | N4: =F4*C4 -> 402741.7493 | O4: 1 | P4: =N4*O4 -> 402741.7493
A5: elektřina | B5: kWh/den | C5: =MODEL!$AT$2 -> 23062.93559 | D5: Kč/kWh | E5: 0.84 | F5: 0.84 | N5: =F5*C5 -> 19372.86589 | O5: 1 | P5: =N5*O5 -> 19372.86589
A6: chladící výkon | B6: kWh/den | C6: =MODEL!$AT$3 -> 47911.19861 | D6: Kč/kWh | E6: 1.2 | F6: 1.2 | G6: chlazení vodou - přehřátí ch. vody o 5°, cena | N6: =F6*C6 -> 57493.43834 | O6: 1 | P6: =N6*O6 -> 57493.43834
O7: celk. | P7: =SUM(P4:P6) -> 479608.0536 | Q7: Kč/den
A9: suroviny - náklady | B9: jedn. mn. | C9: množství | D9: jed. c. | E9: dop. cena. | F9: cena | G9: komentář | N9: cena hrub. | O9: koef. | P9: cena celk. | Q9: komentář
A10: kukuřičná siláž | B10: t/den | C10: =MODEL!H18 -> 141.5718158 | D10: Kč/t | E10: 700 | F10: 700 | N10: =F10*C10 -> 99100.27103 | O10: 1 | P10: =N10*O10 -> 99100.27103
A11: voda | B11: t/den | C11: =MODEL!L16+MODEL!O70+MODEL!C133 -> 584.3906228 | D11: Kč/t | E11: 70 | F11: 70 | N11: 40907.3436 | O11: 1 | P11: 40907.3436
A12: =_xlfn.CONCAT("kys. sírová (96%)") -> kys. sírová (96%) | B12: t/den | C12: =MODEL!I44*'DATA A VÝPOČTY'!C222/96 -> 0.6783649505 | D12: Kč/t | E12: 43000 | F12: 43000 | G12: cena 96% ---- 400 Kč / 5 l ~ 43,5 Kč / kg ~ 43000 Kč / t | N12: 29169.69287 | O12: 1 | P12: 29169.69287
A13: vápno | B13: t/den | C13: =MODEL!Y74 -> 0.3725872084 | D13: Kč/t | E13: 4000 | F13: 4000 | N13: 1490.348834 | O13: 1 | P13: 1490.348834
A14: kvasinky | B14: kg/den | C14: ='DATA A VÝPOČTY'!C314 -> 2.4 | D14: Kč/kg | E14: 4000 | F14: 4000 | N14: 9600 | O14: 1 | P14: 9600
A15: enzymy* | B15: kg/den | C15: ='DATA A VÝPOČTY'!C315 -> 2.4 | D15: Kč/kg | E15: 12000 | F15: 12000 | N15: 28800 | O15: 1 | P15: 28800
A16: =_xlfn.CONCAT("kys. sírová (96%)**") -> kys. sírová (96%)** | B16: t/den | C16: =0.001*MODEL!AU98 -> 0.3699687609 | D16: Kč/t | E16: 43000 | F16: 43000 | G16: cena 96% ---- 400 Kč / 5 l ~ 43,5 Kč / kg ~ 43000 Kč / t | N16: 15908.65672 | O16: 1 | P16: 15908.65672
A17: močovina** | B17: t/den | C17: =C16 -> 0.3699687609 | D17: Kč/t | E17: 6500 | F17: 6500 | N17: 2404.796946 | O17: 1 | P17: 2404.796946
O18: celk. | P18: =SUM(P10:P17) -> 227381.11 | Q18: Kč/den
A20: výstupy - výnosy | B20: jedn. mn. | C20: množství | D20: jed. c. | E20: dop. cena. | F20: cena | G20: komentář | N20: cena hrub. | O20: koef. | P20: cena celk. | Q20: komentář
A21: ethanol (99%) | B21: t/den | C21: =MODEL!L1 -> 20 | D21: Kč/t | E21: 31000 | F21: 31000 | G21: ~ jako sek pro paliváře (26 tis./m^3) | N21: =F21*C21 -> 620000 | O21: 1 | P21: =N21*O21 -> 620000
A22: sádra | B22: t/den | C22: =MODEL!AU77 -> 0.9044939827 | D22: Kč/t | E22: 10000 | F22: 10000 | G22: 10 Kč/kg | N22: =F22*C22 -> 9044.939827 | O22: 1 | P22: =N22*O22 -> 9044.939827
A23: sušina | B23: t/den | C23: =MODEL!L201 -> 29.09816371 | D23: Kč/t | E23: 3000 | F23: 3000 | G23: krmivo | N23: =F23*C23 -> 87294.49113 | O23: 1 | P23: =N23*O23 -> 87294.49113
A24: ligninový syrup | B24: t/den | C24: =MODEL!AM188 -> 32.35277392 | D24: Kč/t | E24: 10000 | F24: 10000 | N24: =F24*C24 -> 323527.7392 | O24: 1 | P24: =N24*O24 -> 323527.7392
A25: přiboudlina | B25: t/den | C25: =MODEL!AF172 -> 36.21518325 | D25: Kč/t | E25: 0 | F25: 0 | N25: =F25*C25 -> 0 | O25: 1 | P25: =N25*O25 -> 0
O26: celk. | P26: =SUM(P21:P25) -> 1039867.17 | Q26: Kč/den
A27: * cena navýšena kvůli případnému vytvoření enzymů na míru (existuje nabídka)
A28: ** u regulačních roztoků uvažováno 0,1 % průtoku hmoty fermentory na regulaci pH ve všech fermentorech | O28: ROI | P28: =C122 -> 7.953137737 | Q28: let
A29: *** průměr z cen dostupných online
A30: **** přiboudlina se spaluje v energetické sekci
P32: 0.09
A33: fixní kap. investice (CAPEX) | C33: =ZAŘÍZENÍ!O1 -> 232755120 | E33: Kč
A34: oběžný kapitál | C34: 4 | E34: týdnů
A36: provozní náklady na sur. a ener. | C36: =P7+P18 -> 706989.1636 | E36: Kč/den
A38: náklady na údržbu (% z CAPEX) | C38: 5 | E38: %
A39: náklady na materiál údržby (% z nakl. na udr.) | C39: 50 | E39: %
A40: osobní náklady údržby (% z nákl. na údr.) | C40: =100-C39 -> 50 | E40: %
A42: počet zaměstnanců | C42: 5 | E42: lidi
A43: počet směn v provozu | C43: 3 | E43: směny
A44: průměrná hrubá mzda v odvětví | C44: 19000 | E44: Kč/měs
A46: náklady na dozor (% z nákladů na obs.) | C46: 15 | E46: %
A47: náklady na spotřební materiál (% z CAPEX) | C47: 1 | E47: %
A48: náklady na laboratoř (% z nákl. na obsluhu) | C48: 15 | E48: %
A49: rezerva na provozní náklady | C49: 3 | E49: %
A51: firemní režie - zázemí (z nákladů na obsluhu) | C51: 60 | E51: %
A52: pojištění (% z CAPEX) | C52: 0.7 | E52: %
A54: dopravné (% z nákl. na suroviny) | C54: 1.5 | E54: %
A56: doba výstavby | C56: 2 | E56: roky
A57: procento kap. investic v 1. roce | C57: 30 | E57: %
A58: životnost jednotky | C58: 10 | E58: roky
A60: bankovní úvěr | C60: =ROUNDUP(C74,-6) -> 233000000 | E60: - | H60: =C60 -> 233000000 | I60: ŘEŠITEL
A61: doba úročení | C61: 7 | E61: roky | G61: 1 | H61: =(H60-J$67)*(1+C$62/100) -> 209183852.4
A62: úrok bank. úvěru | C62: 11 | E62: % | G62: 2 | H62: 182747928.6
A63: splátka | C63: =C60*(1+C62/100)^C61*(C62/100)/((1+C62/100)^C61-1) -> 49446157.78 | E63: Kč/rok | G63: 3 | H63: 153404053.1
G64: 4 | H64: 120832351.4
A65: průměrná doba odepisování majetku | C65: 10 | E65: roky | G65: 5 | H65: 84677762.42
A66: odpisy první rok | C66: 5.5 | E66: % | G66: 6 | H66: 44546168.69
A67: odpisy další roky | C67: =(100-C66)/(C65-1) -> 10.5 | E67: % | G67: 7 | H67: 99.65582644 | I67: splatka: | J67: 44546078.91
A68: životnost jednotky | C68: 20 | E68: roky
A70: daň z příjmu | C70: 19 | E70: %
A72: počet dnů v roce | C72: 300 | E72: den
A73: orientačně roční produkce BE | C73: =C72*C21 -> 6000 | E73: t/rok
A74: CAPEX | C74: =ZAŘÍZENÍ!O1 -> 232755120 | E74: Kč
A76: roční provozní náklady, provozní výnosy, zisky a daně
A77: výnosy za prodej produktů | C77: =P26*$C$72 -> 311960151.1 | E77: Kč/rok
A78: náklady na suroviny a energie | C78: =(P7+P18)*$C$72 -> 212096749.1 | E78: Kč/rok
A79: osobní náklady pracovníků | C79: =C42*C43*C44*12 -> 3420000 | E79: Kč/rok
A80: odozor | C80: =C46/100*C79 -> 513000 | E80: Kč/rok
A81: údržba | C81: =C38*ZAŘÍZENÍ!O1/100 -> 11637756 | E81: Kč/rok
A82: spotřební materiál | C82: =C47*ZAŘÍZENÍ!O1/100 -> 2327551.2 | E82: Kč/rok
A83: laboratoř | C83: =C79*C48/100 -> 513000 | E83: Kč/rok
A84: rezerva | C84: =C49/100*(SUM(C78:D83)) -> 6915241.688 | E84: Kč/rok
A85: pojištění | C85: =C52/100*ZAŘÍZENÍ!O1 -> 1629285.84 | E85: Kč/rok
A86: režie firmy | C86: =C51/100*(C79+C80+C81*C40/100) -> 5851126.8 | E86: Kč/rok
A87: náklady na transport | C87: =C78*C54/100 -> 3181451.236 | E87: Kč/rok
A89: zdanitelné výnosy | C89: =C77-SUM(C78:D87) -> 63874989.21 | E89: Kč/rok
A91: odpisy 1. rok | C91: =C$74*C66/100 -> 12801531.6 | E91: Kč/rok
A92: =_xlfn.CONCAT("odpisy 2. - ",C65,". rok") -> odpisy 2. - 10. rok | C92: =C$74*C67/100 -> 24439287.6 | E92: Kč/rok
A94: =_xlfn.CONCAT("zisk před zdaněním 1. rok") -> zisk před zdaněním 1. rok | C94: =C$89-C91 -> 51073457.61 | E94: Kč/rok
A95: =_xlfn.CONCAT("zisk před zdaněním 2. - ",C65,". rok") -> zisk před zdaněním 2. - 10. rok | C95: =C$89-C92 -> 39435701.61 | E95: Kč/rok
A96: =_xlfn.CONCAT("zisk před zdaněním ",C65+1,". a další rok") -> zisk před zdaněním 11. a další rok | C96: =C$89 -> 63874989.21 | E96: Kč/rok
A98: =_xlfn.CONCAT("daň z příjmů 1. rok") -> daň z příjmů 1. rok | C98: =C94*C$70/100 -> 9703956.947 | E98: Kč/rok
A99: =_xlfn.CONCAT("daň z příjmů 2. - ",C65,". rok") -> daň z příjmů 2. - 10. rok | C99: =C95*C$70/100 -> 7492783.307 | E99: Kč/rok
A100: =_xlfn.CONCAT("daň z příjmů ",C65+1,". a další rok") -> daň z příjmů 11. a další rok | C100: =C96*C$70/100 -> 12136247.95 | E100: Kč/rok
A102: toky hotovosti v jednotlivých letech | E102: -1 | F102: 0 | G102: 1 | H102: 2 | I102: 3 | J102: 4 | K102: 5 | L102: 6 | M102: 7 | N102: 8 | O102: 9 | P102: 10 | Q102: 11 | R102: 12 | S102: 13 | T102: 14 | U102: 15 | V102: 16 | W102: 17 | X102: 18 | Y102: 19 | Z102: 20 | AA102: 21 | AB102: 22 | AC102: 23 | AD102: 24 | AE102: 25 | AF102: 26 | AG102: 27 | AH102: 28 | AI102: 29 | AJ102: 30 | AK102: 31 | AL102: 32 | AM102: 33 | AN102: 34 | AO102: 35 | AP102: 36 | AQ102: 37
A103: toky hotovosti projektu | C103: mil. Kč/rok | E103: =E106+E109+E110 -> -69.826536 | F103: =F106+F109+F110 -> -162.928584 | G103: =G106+G109+G110 -> 73.57894616 | H103: 71.36777252 | I103: 71.36777252 | J103: 71.36777252 | K103: 71.36777252 | L103: 71.36777252 | M103: 76.01123716 | N103: 76.01123716 | O103: 76.01123716 | P103: =P106+P109+P110 -> 76.01123716 | Q103: 76.01123716 | R103: 76.01123716 | S103: 76.01123716 | T103: 76.01123716 | U103: 76.01123716 | V103: 76.01123716 | W103: 76.01123716 | X103: 76.01123716 | Y103: 76.01123716 | Z103: 76.01123716 | AA103: 76.01123716 | AB103: 76.01123716 | AC103: 76.01123716 | AD103: 76.01123716 | AE103: 76.01123716 | AF103: 76.01123716 | AG103: 76.01123716 | AH103: 76.01123716 | AI103: 76.01123716 | AJ103: 76.01123716 | AK103: 76.01123716 | AL103: 76.01123716 | AM103: 76.01123716 | AN103: 76.01123716 | AO103: 76.01123716 | AP103: 76.01123716 | AQ103: 76.01123716
A104: výnosy | C104: mil. Kč/rok | G104: =$C$77*0.000001 -> 311.9601511 | H104: =$C$77*0.000001 -> 311.9601511 | I104: 311.9601511 | J104: 311.9601511 | K104: 311.9601511 | L104: 311.9601511 | M104: 311.9601511 | N104: 311.9601511 | O104: 311.9601511 | P104: 311.9601511 | Q104: 311.9601511 | R104: 311.9601511 | S104: 311.9601511 | T104: 311.9601511 | U104: 311.9601511 | V104: 311.9601511 | W104: 311.9601511 | X104: 311.9601511 | Y104: 311.9601511 | Z104: 311.9601511 | AA104: 311.9601511 | AB104: 311.9601511 | AC104: 311.9601511 | AD104: 311.9601511 | AE104: 311.9601511 | AF104: 311.9601511 | AG104: 311.9601511 | AH104: 311.9601511 | AI104: 311.9601511 | AJ104: 311.9601511 | AK104: 311.9601511 | AL104: 311.9601511 | AM104: 311.9601511 | AN104: 311.9601511 | AO104: 311.9601511 | AP104: 311.9601511 | AQ104: 311.9601511
A105: náklady (bez odpisů) | C105: mil. Kč/rok | G105: =SUM($C$78:$D$87)*0.000001 -> 248.0851618 | H105: 248.0851618 | I105: 248.0851618 | J105: 248.0851618 | K105: 248.0851618 | L105: 248.0851618 | M105: 248.0851618 | N105: 248.0851618 | O105: 248.0851618 | P105: =SUM($C$78:$D$87)*0.000001 -> 248.0851618 | Q105: 248.0851618 | R105: 248.0851618 | S105: 248.0851618 | T105: 248.0851618 | U105: 248.0851618 | V105: 248.0851618 | W105: 248.0851618 | X105: 248.0851618 | Y105: 248.0851618 | Z105: 248.0851618 | AA105: 248.0851618 | AB105: 248.0851618 | AC105: 248.0851618 | AD105: 248.0851618 | AE105: 248.0851618 | AF105: 248.0851618 | AG105: 248.0851618 | AH105: 248.0851618 | AI105: 248.0851618 | AJ105: 248.0851618 | AK105: 248.0851618 | AL105: 248.0851618 | AM105: 248.0851618 | AN105: 248.0851618 | AO105: 248.0851618 | AP105: 248.0851618 | AQ105: 248.0851618
A106: zdanitelné zisky | C106: mil. Kč/rok | G106: =G104-G105 -> 63.87498921 | H106: =H104-H105 -> 63.87498921 | I106: 63.87498921 | J106: 63.87498921 | K106: 63.87498921 | L106: 63.87498921 | M106: 63.87498921 | N106: 63.87498921 | O106: 63.87498921 | P106: =P104-P105 -> 63.87498921 | Q106: 63.87498921 | R106: 63.87498921 | S106: 63.87498921 | T106: 63.87498921 | U106: 63.87498921 | V106: 63.87498921 | W106: 63.87498921 | X106: 63.87498921 | Y106: 63.87498921 | Z106: 63.87498921 | AA106: 63.87498921 | AB106: 63.87498921 | AC106: 63.87498921 | AD106: 63.87498921 | AE106: 63.87498921 | AF106: 63.87498921 | AG106: 63.87498921 | AH106: 63.87498921 | AI106: 63.87498921 | AJ106: 63.87498921 | AK106: 63.87498921 | AL106: 63.87498921 | AM106: 63.87498921 | AN106: 63.87498921 | AO106: 63.87498921 | AP106: 63.87498921 | AQ106: 63.87498921
A107: odpisy | C107: mil. Kč/rok | G107: =C91*0.000001 -> 12.8015316 | H107: =$C92*0.000001 -> 24.4392876 | I107: =$C92*0.000001 -> 24.4392876 | J107: 24.4392876 | K107: 24.4392876 | L107: 24.4392876 | M107: 24.4392876 | N107: 24.4392876 | O107: 24.4392876 | P107: 24.4392876
A108: zisk před zdaněním | C108: mil. Kč/rok | G108: =G106-G107 -> 51.07345761 | H108: =H106-H107 -> 39.43570161 | I108: =I106-I107 -> 39.43570161 | J108: 39.43570161 | K108: 39.43570161 | L108: 39.43570161 | M108: 39.43570161 | N108: 39.43570161 | O108: 39.43570161 | P108: =P106-P107 -> 39.43570161 | Q108: 63.87498921 | R108: 63.87498921 | S108: 63.87498921 | T108: 63.87498921 | U108: 63.87498921 | V108: 63.87498921 | W108: 63.87498921 | X108: 63.87498921 | Y108: 63.87498921 | Z108: 63.87498921 | AA108: 63.87498921 | AB108: 63.87498921 | AC108: 63.87498921 | AD108: 63.87498921 | AE108: 63.87498921 | AF108: 63.87498921 | AG108: 63.87498921 | AH108: 63.87498921 | AI108: 63.87498921 | AJ108: 63.87498921 | AK108: 63.87498921 | AL108: 63.87498921 | AM108: 63.87498921 | AN108: 63.87498921 | AO108: 63.87498921 | AP108: 63.87498921 | AQ108: 63.87498921
A109: daň | C109: mil. Kč/rok | G109: =C98*0.000001 -> 9.703956947 | H109: =$C99*0.000001 -> 7.492783307 | I109: =$C99*0.000001 -> 7.492783307 | J109: =$C99*0.000001 -> 7.492783307 | K109: =$C99*0.000001 -> 7.492783307 | L109: =$C99*0.000001 -> 7.492783307 | M109: =$C100*0.000001 -> 12.13624795 | N109: =$C100*0.000001 -> 12.13624795 | O109: =$C100*0.000001 -> 12.13624795 | P109: =$C100*0.000001 -> 12.13624795 | Q109: 12.13624795 | R109: 12.13624795 | S109: 12.13624795 | T109: 12.13624795 | U109: 12.13624795 | V109: 12.13624795 | W109: 12.13624795 | X109: 12.13624795 | Y109: 12.13624795 | Z109: 12.13624795 | AA109: 12.13624795 | AB109: 12.13624795 | AC109: 12.13624795 | AD109: 12.13624795 | AE109: 12.13624795 | AF109: 12.13624795 | AG109: 12.13624795 | AH109: 12.13624795 | AI109: 12.13624795 | AJ109: 12.13624795 | AK109: 12.13624795 | AL109: 12.13624795 | AM109: 12.13624795 | AN109: 12.13624795 | AO109: 12.13624795 | AP109: 12.13624795 | AQ109: 12.13624795
A110: fixní kap. investice | C110: mil. Kč/rok | E110: =-C74*C57/100*0.000001 -> -69.826536 | F110: =-C74*(1-C57/100)*0.000001 -> -162.928584
A111: toky hotovosti cizích zdrojů | C111: mil. Kč/rok | E111: =E112 -> 233 | F111: =F112 -> 0 | G111: -49.44615778 | H111: -49.44615778 | I111: -49.44615778 | J111: -49.44615778 | K111: -49.44615778 | L111: -49.44615778 | M111: -49.44615778 | N111: 0 | O111: 0 | P111: =P112 -> 0 | Q111: 0 | R111: 0 | S111: 0 | T111: 0 | U111: 0 | V111: 0 | W111: 0 | X111: 0 | Y111: 0 | Z111: 0 | AA111: 0 | AB111: 0 | AC111: 0 | AD111: 0 | AE111: 0 | AF111: 0 | AG111: 0 | AH111: 0 | AI111: 0 | AJ111: 0 | AK111: 0 | AL111: 0 | AM111: 0 | AN111: 0 | AO111: 0 | AP111: 0 | AQ111: 0
A112: úvěr | C112: mil. Kč/rok | E112: =C60*0.000001 -> 233 | G112: =-$C$63*0.000001 -> -49.44615778 | H112: =-$C$63*0.000001 -> -49.44615778 | I112: -49.44615778 | J112: -49.44615778 | K112: -49.44615778 | L112: -49.44615778 | M112: -49.44615778
A114: toky vlastních zdrojů | C114: mil. Kč/rok | E114: =E111+E103 -> 163.173464 | F114: =F111+F103 -> -162.928584 | G114: 24.13278838 | H114: 21.92161474 | I114: 21.92161474 | J114: 21.92161474 | K114: 21.92161474 | L114: 21.92161474 | M114: 26.56507938 | N114: 76.01123716 | O114: 76.01123716 | P114: =P111+P103 -> 76.01123716 | Q114: 76.01123716 | R114: 76.01123716 | S114: 76.01123716 | T114: 76.01123716 | U114: 76.01123716 | V114: 76.01123716 | W114: 76.01123716 | X114: 76.01123716 | Y114: 76.01123716 | Z114: 76.01123716 | AA114: 76.01123716 | AB114: 76.01123716 | AC114: 76.01123716 | AD114: 76.01123716 | AE114: 76.01123716 | AF114: 76.01123716 | AG114: 76.01123716 | AH114: 76.01123716 | AI114: 76.01123716 | AJ114: 76.01123716 | AK114: 76.01123716 | AL114: 76.01123716 | AM114: 76.01123716 | AN114: 76.01123716 | AO114: 76.01123716 | AP114: 76.01123716 | AQ114: 76.01123716
E116: =SUM($E103:E103) -> -69.826536 | F116: =SUM($E103:F103) -> -232.75512 | G116: =SUM($E103:G103) -> -159.1761738 | H116: =SUM($E103:H103) -> -87.80840132 | I116: =SUM($E103:I103) -> -16.4406288 | J116: =SUM($E103:J103) -> 54.92714372 | K116: =SUM($E103:K103) -> 126.2949162 | L116: =SUM($E103:L103) -> 197.6626888 | M116: =SUM($E103:M103) -> 273.6739259 | N116: =SUM($E103:N103) -> 349.6851631 | O116: =SUM($E103:O103) -> 425.6964003 | P116: =SUM($E103:P103) -> 501.7076374 | Q116: =SUM($E103:Q103) -> 577.7188746 | R116: =SUM($E103:R103) -> 653.7301117 | S116: =SUM($E103:S103) -> 729.7413489 | T116: =SUM($E103:T103) -> 805.7525861 | U116: =SUM($E103:U103) -> 881.7638232 | V116: =SUM($E103:V103) -> 957.7750604 | W116: =SUM($E103:W103) -> 1033.786298 | X116: =SUM($E103:X103) -> 1109.797535 | Y116: =SUM($E103:Y103) -> 1185.808772 | Z116: =SUM($E103:Z103) -> 1261.820009 | AA116: =SUM($E103:AA103) -> 1337.831246 | AB116: =SUM($E103:AB103) -> 1413.842483 | AC116: =SUM($E103:AC103) -> 1489.853721 | AD116: =SUM($E103:AD103) -> 1565.864958 | AE116: =SUM($E103:AE103) -> 1641.876195 | AF116: =SUM($E103:AF103) -> 1717.887432 | AG116: =SUM($E103:AG103) -> 1793.898669 | AH116: =SUM($E103:AH103) -> 1869.909906 | AI116: =SUM($E103:AI103) -> 1945.921144 | AJ116: =SUM($E103:AJ103) -> 2021.932381 | AK116: =SUM($E103:AK103) -> 2097.943618 | AL116: =SUM($E103:AL103) -> 2173.954855 | AM116: =SUM($E103:AM103) -> 2249.966092 | AN116: =SUM($E103:AN103) -> 2325.977329 | AO116: =SUM($E103:AO103) -> 2401.988567 | AP116: =SUM($E103:AP103) -> 2477.999804 | AQ116: =SUM($E103:AQ103) -> 2554.011041
E117: =SUM($E$111:E111) -> 233 | F117: =SUM($E$111:F111) -> 233 | G117: =SUM($E$111:G111) -> 183.5538422 | H117: =SUM($E$111:H111) -> 134.1076844 | I117: =SUM($E$111:I111) -> 84.66152665 | J117: =SUM($E$111:J111) -> 35.21536887 | K117: =SUM($E$111:K111) -> -14.23078891 | L117: =SUM($E$111:L111) -> -63.67694669 | M117: =SUM($E$111:M111) -> -113.1231045 | N117: =SUM($E$111:N111) -> -113.1231045 | O117: =SUM($E$111:O111) -> -113.1231045 | P117: =SUM($E$111:P111) -> -113.1231045 | Q117: =SUM($E$111:Q111) -> -113.1231045 | R117: =SUM($E$111:R111) -> -113.1231045 | S117: =SUM($E$111:S111) -> -113.1231045 | T117: =SUM($E$111:T111) -> -113.1231045 | U117: =SUM($E$111:U111) -> -113.1231045 | V117: =SUM($E$111:V111) -> -113.1231045 | W117: =SUM($E$111:W111) -> -113.1231045 | X117: =SUM($E$111:X111) -> -113.1231045 | Y117: =SUM($E$111:Y111) -> -113.1231045 | Z117: =SUM($E$111:Z111) -> -113.1231045 | AA117: =SUM($E$111:AA111) -> -113.1231045 | AB117: =SUM($E$111:AB111) -> -113.1231045 | AC117: =SUM($E$111:AC111) -> -113.1231045 | AD117: =SUM($E$111:AD111) -> -113.1231045 | AE117: =SUM($E$111:AE111) -> -113.1231045 | AF117: =SUM($E$111:AF111) -> -113.1231045 | AG117: =SUM($E$111:AG111) -> -113.1231045 | AH117: =SUM($E$111:AH111) -> -113.1231045 | AI117: =SUM($E$111:AI111) -> -113.1231045 | AJ117: =SUM($E$111:AJ111) -> -113.1231045 | AK117: =SUM($E$111:AK111) -> -113.1231045 | AL117: =SUM($E$111:AL111) -> -113.1231045 | AM117: =SUM($E$111:AM111) -> -113.1231045 | AN117: =SUM($E$111:AN111) -> -113.1231045 | AO117: =SUM($E$111:AO111) -> -113.1231045 | AP117: =SUM($E$111:AP111) -> -113.1231045 | AQ117: =SUM($E$111:AQ111) -> -113.1231045
E118: =SUM(E116:E117) -> 163.173464 | F118: =SUM(F116:F117) -> 0.24488 | G118: 24.37766838 | H118: 46.29928312 | I118: 68.22089785 | J118: 90.14251259 | K118: 112.0641273 | L118: 133.9857421 | M118: 160.5508215 | N118: 236.5620586 | O118: 312.5732958 | P118: =SUM(P116:P117) -> 388.5845329 | Q118: 464.5957701 | R118: 540.6070073 | S118: 616.6182444 | T118: 692.6294816 | U118: 768.6407188 | V118: 844.6519559 | W118: 920.6631931 | X118: 996.6744303 | Y118: 1072.685667 | Z118: 1148.696905 | AA118: 1224.708142 | AB118: 1300.719379 | AC118: 1376.730616 | AD118: 1452.741853 | AE118: 1528.75309 | AF118: 1604.764328 | AG118: 1680.775565 | AH118: 1756.786802 | AI118: 1832.798039 | AJ118: 1908.809276 | AK118: 1984.820513 | AL118: 2060.831751 | AM118: 2136.842988 | AN118: 2212.854225 | AO118: 2288.865462 | AP118: 2364.876699 | AQ118: 2440.887936
F120: =F116 -> -232.75512 | G120: =F120+G114 -> -208.6223316 | H120: =G120+H114 -> -186.7007169 | I120: -164.7791021 | J120: -142.8574874 | K120: -120.9358727 | L120: -99.01425793 | M120: -72.44917855 | N120: 3.562058615 | O120: 79.57329578 | P120: =O120+P114 -> 155.5845329 | Q120: 231.5957701 | R120: 307.6070073 | S120: 383.6182444 | T120: 459.6294816 | U120: 535.6407188 | V120: 611.6519559 | W120: 687.6631931 | X120: 763.6744303 | Y120: 839.6856674 | Z120: 915.6969046 | AA120: 991.7081417 | AB120: 1067.719379 | AC120: 1143.730616 | AD120: 1219.741853 | AE120: 1295.75309 | AF120: 1371.764328 | AG120: 1447.775565 | AH120: 1523.786802 | AI120: 1599.798039 | AJ120: =AI120+AJ114 -> 1675.809276 | AK120: 1751.820513 | AL120: 1827.831751 | AM120: 1903.842988 | AN120: 1979.854225 | AO120: 2055.865462 | AP120: 2131.876699 | AQ120: 2207.887936
G121: =IF(G120>0,IF(F120<0,F102-F120/(G120-F120),0),0) -> 0 | H121: 0 | I121: 0 | J121: 0 | K121: 0 | L121: 0 | M121: 0 | N121: 7.953137737 | O121: 0 | P121: 0 | Q121: 0 | R121: 0 | S121: =IF(S120>0,IF(R120<0,R102-R120/(S120-R120),0),0) -> 0 | T121: 0 | U121: 0 | V121: 0 | W121: 0 | X121: 0 | Y121: 0 | Z121: 0 | AA121: 0 | AB121: 0 | AC121: 0 | AD121: 0 | AE121: 0 | AF121: 0 | AG121: 0 | AH121: 0 | AI121: 0 | AJ121: 0 | AK121: 0 | AL121: 0 | AM121: 0 | AN121: 0 | AO121: 0 | AP121: 0 | AQ121: 0
A122: Doba návratnosti (skutečná) | C122: =SUM(G121:AQ121) -> 7.953137737 | D122: let

Sheet DALŠÍ INFORMACE
A1: definovatelné, možné měnit.
A2: fyzikálně dané, nedoporučuje se měnit.
A3: vypočítané a odkazované, neměnit!
B5: p (kPa) | C5: zdroj
A6: tlak v záparové koloně (kPa) | B6: 180 | C6: [0] | D6: (mění se na kartě model)
A7: tlak v rektifikační koloně (kPa) | B7: 200 | C7: [0] | D7: (dopor. hodnoty dle zdroje - 200 kPa, 170 kPa)
B9: c(mol/mol) | C9: p[kPa] | D9: c(w/w)
A10: azeotrop E-W | B10: 0.885 | C10: 101.325 | D10: =B10*'VLASTNOSTI LÁTEK'!$F$6/('DALŠÍ INFORMACE'!B10*'VLASTNOSTI LÁTEK'!$F$6+'VLASTNOSTI LÁTEK'!$F$4*(1-'DALŠÍ INFORMACE'!B10)) -> 0.9516317826
A11: azeotrop E-W | B11: 0.812 | C11: =C10*10 -> 1013.25 | D11: =B11*'VLASTNOSTI LÁTEK'!$F$6/('DALŠÍ INFORMACE'!B11*'VLASTNOSTI LÁTEK'!$F$6+'VLASTNOSTI LÁTEK'!$F$4*(1-'DALŠÍ INFORMACE'!B11)) -> 0.9169597466 | E11: (data ze zdroje [7])
A13: azeotrope E-W (lin. approx) | C13: 170 | D13: =D10-(D10-D11)/(C11-C10)*(C13-C10) -> 0.9490207103
A15: výparné teplo mol -> kg | B15: dHlg kJ/mol | C15: dHlg kJ/kg
A16: BE (75°C) | B16: 40 | C16: =B16*1000/'VLASTNOSTI LÁTEK'!F6 -> 868.2439766
A18: tlak páry | B18: ='VLASTNOSTI LÁTEK'!I5/1000 -> 1.4
A19: skup. teplo varu | B19: =IF(B18<E30,J29,IF(B18<E31,J30,J31)) -> 1961.2625
C21: A | D21: B | E21: C | F21: log(p)=A-B/(T+C)
A22: teplota varu páry (antoine) | B22: 379. - 573. | C22: 3.55959 | D22: 643.748 | E22: -198.043 | F22: T = B/(A-logp) - C
A23: teplota páry | B23: =H24+273.15+'VLASTNOSTI LÁTEK'!N3 -> 509.775192 | C23: K | H23: =D22/(C22-LOG10(B18*10))-E22 -> 464.775192
B24: =B23-273.15 -> 236.625192 | C24: °C | H24: =H23-273.15 -> 191.625192
A27: přepočet koncentrací z znalosti průtoků v zápaře dle [13] | E27: výpočtová tabulka pro prokládání skup. tepla tání
B28: m_mod (kg/h) | C28: c (w/w) | E28: tabulka pro skup. teplo tání | H28: dHlg | I28: směrnice
A29: ethanol | B29: 24825 | C29: =B29/B$50 -> 0.05516185533 | E29: 0.1 | F29: 417.5 | G29: 2674.9 | H29: =G29-F29 -> 2257.4 | I29: =(H30-H29)/(E30-E29) -> -469 | J29: =H29+(B18-E29)*I29 -> 1647.7
A30: voda | B30: 374828 | C30: 0.8328784656 | E30: 0.3 | F30: 561.2 | G30: 2724.8 | H30: =G30-F30 -> 2163.6 | I30: =(H31-H30)/(E31-E30) -> -245.75 | J30: =H30+(B18-E30)*I30 -> 1893.275
A31: zbylé cukry (glukoza, xyloza, arabinoza…) | B31: =82+909+217+254+360 -> 1822 | C31: 0.004048535767 | E31: 0.7 | F31: 697.4 | G31: 2762.7 | H31: =G31-F31 -> 2065.3 | I31: =(H32-H31)/(E32-E31) -> -148.625 | J31: =H31+(B18-E31)*I31 -> 1961.2625
A32: oligomery cukrů | B32: =1853+646+969 -> 3468 | C32: 0.007705994533 | E32: 1.5 | F32: 844.5 | G32: 2790.9 | H32: =G32-F32 -> 1946.4
A33: škrobový likér | B33: 1459 | C33: 0.003241939453
A34: další rozpustné látky | B34: 9581 | C34: 0.02128925422 | E34: PO FERMENTACI
A35: kyselina octová | B35: 5258 | C35: 0.01168342539 | E35: ethanol | G35: =B29 -> 24825 | H35: =G35/G38 -> 0.7536658672
A36: kys. sírová | B36: 154 | C36: 0.0003421923754 | E36: zbylé cukry | G36: =B31+B32 -> 5290 | H36: =G36/G38 -> 0.1605998968
A37: furfural | B37: 576 | C37: 0.001279888365 | E37: škrob a celuloza | G37: =B33+B41 -> 2824 | H37: =G37/G38 -> 0.08573423601
A38: HMF | B38: 90 | C38: 0.0001999825571 | E38: celkem před | G38: =SUM(G35:G37) -> 32939 | H38: =SUM(H35:H37) -> 1
A39: oxid uhličitý | B39: 440 | C39: 0.0009776925013
A40: další anorganické látky | B40: 4276 | C40: 0.00950139349 | E40: poměr přiboudliny ku ethanolu | H40: 0.01 | I40: w/w
A41: celuloza | B41: 1365 | C41: 0.003033068782
A42: xylan | B42: 439 | C42: 0.0009754704729
A43: arabinan | B43: 61 | C43: 0.0001355437331
A44: cukerné polymery | B44: 1161 | C44: 0.002579774986
A45: zymo | B45: 1088 | C45: 0.002417566912
A46: lignin | B46: 14252 | C46: 0.03166834893
A47: sádra | B47: 28 | C47: 6.221679554e-05
A48: těžší alkoholy (PŘIBOUDLINA) | B48: =B29*H40 -> 248.25 | C48: 0.0005516185533 | D48: - pozn.: V obou zdrojích ( [0] a [3] ) považují přiboudlinu za zanedatelnou. Pro představu byla volena jako 1 % hm. z ethanolu.
A49: další nerozpustné látky | B49: 4620 | C49: 0.01026577126
A50: suma | B50: =SUM(B29:B49) -> 450039.25 | D50: =C49+C45+C41 -> 0.01571640696
A52: přepočet koncentrací z znalosti průtoků v nástřiku F-403 e dle [13] | E52: přepočet koncentrací z znalosti průtoků ve výpalcích dle [13]
B53: m_mod (kg/h) | C53: c (% w/w) | I53: m_mod (kg/h) | J53: c (w/w)
A54: ethanol | B54: 24583 | C54: =B54/B$75 -> 0.3928550026 | E54: ethanol | I54: =B29-B54 -> 242 | J54: =I54/I$75 -> 0.000624574154
A55: voda | B55: 36990 | C55: =B55/B$75 -> 0.5911282815 | E55: voda | I55: =B30-B55 -> 337838 | J55: =I55/I$75 -> 0.8719210043
A56: zbylé cukry (glukoza, xyloza, arabinoza…) | B56: 0 | C56: 0 | E56: zbylé cukry (glukoza, xyloza, arabinoza…) | I56: 1822 | J56: 0.004702372349
A57: oligomery cukrů | B57: 0 | C57: 0 | E57: oligomery cukrů | I57: 3468 | J57: 0.008950508951
A58: škrobový likér | B58: 145 | C58: 0.002317210079 | E58: škrobový likér | I58: 1314 | J58: 0.003391282803 | K58: =SUM(J56:J58) -> 0.0170441641
A59: další rozpustné látky | B59: 0 | C59: 0 | E59: další rozpustné látky | I59: 9581 | J59: 0.02472745855
A60: kyselina octová | B60: 259 | C60: 0.004139016624 | E60: kyselina octová | I60: 4999 | J60: 0.01290184378
A61: kys. sírová | B61: 0 | C61: 0 | E61: kys. sírová | I61: 154 | J61: 0.0003974562798
A62: furfural | B62: 278 | C62: 0.004442651048 | E62: furfural | I62: 298 | J62: 0.0007691037103
A63: HMF | B63: 43 | C63: 0.0006871726441 | E63: HMF | I63: 47 | J63: 0.0001213015919
A64: oxid uhličitý | B64: 29 | C64: 0.0004634420158 | E64: oxid uhličitý | I64: 411 | J64: 0.001060743708
A65: další anorganické látky | B65: 0 | C65: 0 | E65: další anorganické látky | I65: 4276 | J65: 0.01103586398
A66: celuloza | B66: 0 | C66: 0 | E66: celuloza | I66: 1365 | J66: 0.003522907935
A67: xylan | B67: 0 | C67: 0 | E67: xylan | I67: 439 | J67: 0.001133008486
A68: arabinan | B68: 0 | C68: 0 | E68: arabinan | I68: 61 | J68: 0.000157433981
A69: cukerné polymery | B69: 0 | C69: 0 | E69: cukerné polymery | I69: 1161 | J69: 0.002996407408
A70: zymo | B70: 0 | C70: 0 | E70: zymo | I70: 1088 | J70: 0.002808002808
A71: lignin | B71: 0 | C71: 0 | E71: lignin | I71: 14252 | J71: 0.03678277208
A72: sádra | B72: 0 | C72: 0 | E72: sádra | I72: 28 | J72: 7.226477815e-05
A73: těžší alkoholy (PŘIBOUDLINA) | B73: =B48 -> 248.25 | C73: 0.003967223463 | E73: těžší alkoholy (PŘIBOUDLINA) | I73: 0 | J73: 0
A74: další nerozpustné látky | B74: 0 | C74: 0 | E74: další nerozpustné látky | I74: 4620 | J74: 0.01192368839
A75: suma | B75: =SUM(B54:B74) -> 62575.25 | E75: suma | I75: =SUM(I54:I74) -> 387464
A77: michani! | B77: 20 - 60 W/cub.m.
A79: složení vstupů ([13],[25])
B80: m_mod (kg/h) | C80: c (% w/w) | D80: dle [3] | E80: průměr | F80: % slož. suš. | H80: siláž dle [13] | J80: siláž dle [25] | L80: sušina dle [13] | N80: sušina dle [25]
A81: voda | B81: 45000 | C81: =B81/B$87 -> 0.3737541528 | D81: 0.38 | E81: =(D81+C81)/2 -> 0.3768770764 | F81: - | H81: =B81 -> 45000 | I81: =H81/SUM(H$81:H$86)*100 -> 37.37541528 | J81: =D81 -> 0.38 | K81: 0.6
A82: celuloza | B82: 31000 | C82: 0.2574750831 | D82: 0.25 | E82: 0.2537375415 | F82: =E82/SUM(E$82:E$86)*100 -> 40.72030284 | H82: 31000 | I82: 25.74750831 | J82: 0.25 | K82: =J82/SUM(J$81:J$86)*100 -> 25 | L82: =C82 -> 0.2574750831 | M82: =L82/SUM(L$82:L$86)*100 -> 41.11405836 | N82: =D82 -> 0.25 | O82: =N82/SUM(N$82:N$86)*100 -> 40.32258065
A83: xylan (hemiceluloza) | B83: 17000 | C83: 0.1411960133 | D83: 0.15 | E83: 0.1455980066 | F83: =E83/SUM(E$82:E$86)*100 -> 23.36585626 | H83: 17000 | I83: 14.11960133 | J83: 0.15 | K83: =J83/SUM(J$81:J$86)*100 -> 15 | L83: =C83 -> 0.1411960133 | M83: =L83/SUM(L$82:L$86)*100 -> 22.5464191 | N83: =D83 -> 0.15 | O83: =N83/SUM(N$82:N$86)*100 -> 24.19354839
A84: lignin | B84: 15000 | C84: 0.1245847176 | D84: 0.14 | E84: 0.1322923588 | F84: =E84/SUM(E$82:E$86)*100 -> 21.23053956 | H84: 15000 | I84: 12.45847176 | J84: 0.14 | K84: =J84/SUM(J$81:J$86)*100 -> 14 | L84: =C84 -> 0.1245847176 | M84: =L84/SUM(L$82:L$86)*100 -> 19.8938992 | N84: =D84 -> 0.14 | O84: =N84/SUM(N$82:N$86)*100 -> 22.58064516
A85: arabinan a další | B85: 5000 | C85: 0.0415282392 | D85: 0.05 | E85: 0.0457641196 | F85: =E85/SUM(E$82:E$86)*100 -> 7.344316485 | H85: 5000 | I85: 4.15282392 | J85: 0.05 | K85: =J85/SUM(J$81:J$86)*100 -> 5 | L85: =C85 -> 0.0415282392 | M85: =L85/SUM(L$82:L$86)*100 -> 6.631299735 | N85: =D85 -> 0.05 | O85: =N85/SUM(N$82:N$86)*100 -> 8.064516129
A86: další rozpustné látky | B86: 7400 | C86: 0.06146179402 | D86: 0.03 | E86: 0.04573089701 | F86: =E86/SUM(E$82:E$86)*100 -> 7.338984858 | H86: 7400 | I86: 6.146179402 | J86: 0.03 | K86: =J86/SUM(J$81:J$86)*100 -> 3 | L86: =C86 -> 0.06146179402 | M86: =L86/SUM(L$82:L$86)*100 -> 9.814323607 | N86: =D86 -> 0.03 | O86: =N86/SUM(N$82:N$86)*100 -> 4.838709677
A87: suma | B87: =SUM(B81:B86) -> 120400 | D87: =SUM(D81:D86) -> 1 | E87: =SUM(E81:E86) -> 1 | F87: =SUM(F82:F86) -> 100
A89: poměr brýd k vystup. směsi (flash K-206) DLE [13]
A90: brýdy z flashe | B90: 53.152
A91: směs z flashe | B91: 225.713
A92: poměr brýd ku S+L z flashe | B92: =B90/B91 -> 0.2354848857
A94: zrno + voda z PTreaktoru 1 | B94: 140183
A95: pára do PTreaktoru 2 | B95: 37234
A96: poměr páry k vstupu do PT2 | B96: =B95/B94 -> 0.2656099527
A98: hustota plynného ethanolu na mezi sytosti
A99: A | B99: 4.92531
A100: B | B100: 1432.526
A101: C | B101: -61.819
A102: P | B102: 1.7 | C102: bar
A104: T | B104: =-B101-B100/(LOG10(B102)-B99) -> 366.9453873 | C104: K
A106: rho ze stavové rovnice | B106: =B102*100000*'VLASTNOSTI LÁTEK'!F6/8.318/'DALŠÍ INFORMACE'!B104/1000 -> 2.565941701 | C106: kg/m^3
A108: cena chladu
A109: cena říční vody (pro chlazení) | B109: 2500 | C109: Kč/1000 m^3
A110: dov. přehřátí vody | B110: 50 | C110: °C
A111: teplo odebrané vodou o V = 1000 m^3 | B111: =B110*1000*'VLASTNOSTI LÁTEK'!B4*'VLASTNOSTI LÁTEK'!D4 -> 208582000 | C111: kJ/1000 m^3
A112: teplo odebrané vodou o V = 1000 m^3 [kWh] | B112: =B111/3600 -> 57939.44444 | C112: kWh/1000 m^3
A113: cena chladu [kWh] | B113: =B109/B112 -> 0.04314849795 | C113: Kč/kWh
A117: MURICA | B117: 0.25 | C117: $/l
B118: =B117*1000 -> 250 | C118: $/m^3
B119: ='VLASTNOSTI LÁTEK'!B6 -> 789.3 | C119: kg/m^3
B120: =B118/B119*1000 -> 316.7363487 | C120: $/t
B121: =ZAŘÍZENÍ!O2*'DALŠÍ INFORMACE'!B120:B120 -> 7284.936019 | C121: Kč/t
A124: cp(eth) | B124: 112.4 | C124: J/mol/K
A125: cp(eth) | B125: =B124/'VLASTNOSTI LÁTEK'!F6 -> 2.439765574 | C125: kJ/kg/K
A127: kapacita páry
A128: Temperature (K) | B128: 500. - 1700. | C128: 1700. - 6000.
A129: A | B129: 30.092 | C129: 41.96426
A130: B | B130: 6.832514 | C130: 8.622053
A131: C | B131: 6.793435 | C131: -1.499780
A132: D | B132: -2.53448 | C132: 0.098119
A133: E | B133: 0.082139 | C133: -11.15764
A135: Cp | B135: =B129+B130*(B23/1000)+B131*(B23/1000)*(B23/1000)+B132*(B23/1000)^3+B133*(B23/1000)^-2 -> 35.32078061 | C135: kJ/kmol/K
A136: cp | B136: =B135/'VLASTNOSTI LÁTEK'!F4 -> 1.960087714 | C136: kJ/kg/K

Sheet POMOCNÉ TABULKY (pro makra)
A1: zapnuto
A2: vypnuto
A4: odparka | B4: =IF(odparka="zapnuto",1,0)*ODS -> 1
A5: odstredivka | B5: =IF(odstredivka="zapnuto",1,0) -> 1
A7: optimální teplota f1 | E7: ='DATA A VÝPOČTY'!E136 -> 65 | F7: °C
A8: optimální teplota f2 | E8: ='DATA A VÝPOČTY'!F136 -> 50 | F8: °C
A9: optimální teplota f3 | E9: ='DATA A VÝPOČTY'!G136 -> 41 | F9: °C
A10: optimální teplota f4 | E10: ='DATA A VÝPOČTY'!H136 -> 41 | F10: °C
A21: Toto tu je pouze kvůli potřebám definice barev v DP.
A23: Definovatelná hodnota (vstupní hodnota) | H23: 0.9 | I23: 9.21
A24: Fyzikálně či jinak daná hodnota (bez výpočtu) | H24: 0.8 | I24: 8.47
A25: Vypočítaná, neměnná hodnota | H25: 0.6 | I25: 7.3
H26: 1.1 | I26: 11.15
A27: Obecně neměnná buňka (výpočet), popř. hmotnostní průtok [t/den] | H27: 1.3 | I27: 14.13
A28: Spotřeba páry [t/den] | H28: 1.7 | I28: 30.39
A29: Spotřeba elektrické energie [kWh/den] | H29: 0.3 | I29: 5.1
A30: Spotřeba chladící energie [kWh/den]
C33: etanol | D33: ROI
C34: 35 | D34: 4.65
C35: 31 | D35: 8.29
C36: 30 | D36: 9.3
C37: 29 | D37: 10.58
C38: 28 | D38: 12.29
C39: 26 | D39: 18.13
C40: 24 | D40: 34.56
C41: $Ligninu | D41: ROI
C42: 12 | D42: 5.23
C43: 11 | D43: 7.03
C44: 10 | D44: 8.29
C45: 9 | D45: 10.09
C46: 8 | D46: 12.89
C47: 7 | D47: 17.84
C48: 6 | D48: 28.97
C49: $siláže | D49: ROI
C50: 0 | D50: 4.43
C51: 0.2 | D51: 5.7
C52: 0.5 | D52: 7.8
C53: 0.7 | D53: 9.21
C54: 1 | D54: 12.61
C55: 1.4 | D55: 24.85
C56: enzymy | D56: ROI
C57: 35 | D57: 14.18
C58: 25 | D58: 11.48
C59: 12 | D59: 9.21
C60: 10 | D60: 8.93
C61: 5 | D61: 8.32
C62: 1 | D62: 7.88
C63: 0 | D63: 7.78
C64: elektřina | D64: ROI
C65: 2.4 | D65: 11.62
C66: 1.5 | D66: 10.09
C67: 1 | D67: 9.41
C68: 0.84 | D68: 9.21
C69: 0.6 | D69: 8.92
C70: 0 | D70: 8.28
C71: 1.9 | D71: 10.72
C72: chlad | D72: ROI
C73: 1.2 | D73: 9.21
C74: 1 | D74: 8.68
C75: 0.8 | D75: 8.21
C76: 1.4 | D76: 9.8
C77: 1.6 | D77: 10.48
C78: 3 | D78: 20.36
C79: 3.5 | D79: 30.68
C80: pára | D80: ROI
C81: 0.9 | D81: 9.21
C82: 0.8 | D82: 8.47
C83: 0.6 | D83: 7.3
C84: 1.1 | D84: 11.15
C85: 1.3 | D85: 14.13
C86: 1.7 | D86: 30.39
A89: 1 | B89: B-101 | C89: silo pro uskladnění klasů
A90: 1 | B90: H-102 | C90: pásový dopravník
A91: 1 | B91: F-103 | C91: promývací dopravník (šikmý)
A92: 1 | B92: P-104 | C92: čerpadlo na vodu
A93: 1 | B93: P-105 | C93: čerpadlo na vodu
A94: 1 | B94: H-106 | C94: pásový dopravník
A95: 1 | B95: F-107 | C95: magnetický odlučovač
A96: 1 | B96: H-108 | C96: pásový dopravník
A97: 1 | B97: Z-109 | C97: nožový drtič
A98: 1 | B98: B-110 | C98: zásobník nasekaných klasů
A99: 2 | B99: H-201 | C99: šnekový dopravník z zásobníku do reak.
A100: 2 | B100: B-202 | C100: 1. pre-treatment reaktor
A101: 2 | B101: H-203 | C101: šnekový dopravník s těsnícím prvkem
A102: 2 | B102: B-204 | C102: 2. pre-treatment reaktor
A103: 2 | B103: H-205 | C103: šnekový dopravník s těsnícím prvkem
A104: 2 | B104: B-206 | C104: flash-expanzní nádoba
A105: 2 | B105: H-207 | C105: dopravník
A106: 2 | B106: F-208 | C106: tlakový filtr
A107: 2 | B107: H-209 | C107: šnekový dopravník
A108: 2 | B108: B-210 | C108: homogenizační a akumulační tank
A109: 2 | B109: M-211 | C109: elektromotor pro pohon míchadla
A110: 2 | B110: B-212 | C110: neutralizační reaktor
A111: 2 | B111: M-213 | C111: elektromotor pro pohon míchadla
A112: 2 | B112: H-214 | C112: dopravník na vápno
A113: 2 | B113: P-215 | C113: čerpadlo na kapalnou fázi
A114: 2 | B114: F-216 | C114: kalolis
A115: 2 | B115: P-217 | C115: čerpadlo na kapalnou fázi
A116: 2 | B116: H-218 | C116: dopravník na sádru
A117: 2 | B117: V-219 | C117: kompresor na NT páru
A118: 3 | B118: B-301-4 | C118: fermentor
A119: 3 | B119: B-306 | C119: akumulační a homogenizační tank
A120: 3 | B120: B-311-5 | C120: elektromotor pro pohon míchadla
A121: 3 | B121: P-321-5 | C121: čerpadla pro čerpání kapalné fáze
A122: 3 | B122: P-331-4 | C122: čerpadla regulačních okruhů
A123: 3 | B123: W-341 | C123: kondenzační výměník
A124: 3 | B124: P-342/3 | C124: čerpadla okruhů pro regulaci pH
A125: 3 | B125: P-344 | C125: čerpadlo na kondenzát
A126: 4 | B126: P-401 | C126: čerpadlo na záparu
A127: 4 | B127: K-402 | C127: záparová kolona (klobouková)
A128: 4 | B128: K-403 | C128: destilační kolona (kloboučková)
A129: 4 | B129: F-404 | C129: molekulová sítá
A130: 4 | B130: B-405 | C130: kondenzátor za rektifikační kolonou
A131: 4 | B131: W-406 | C131: výměník pro dochlazení
A132: 4 | B132: P-407 | C132: čerpadlo na chladící vodu
A133: 4 | B133: P-408 | C133: čerpadlo na chladící vodu
A134: 4 | B134: W-410 | C134: utilizační výměník brýdy z flash)
A135: 4 | B135: W-411 | C135: utilizační výměník (zápara)
A136: 4 | B136: K-412 | C136: kondenzátor na páry ze záparové kol.
A137: 4 | B137: V-413 | C137: kompresor před molekulovými síty
A138: 4 | B138: P-414 | C138: čerpadlo na záparu
A139: 4 | B139: P-415 | C139: čerpadlo pro nástřik do destilační kolony
A140: 4 | B140: B-421 | C140: parní pračka na záparu
A141: 4 | B141: V-422 | C141: ventilátor na páru s ethanolem z pračky
A142: 4 | B142: F-431 | C142: odstředivka pro separaci sušiny ze zápary
A143: 4 | B143: T-432 | C143: odparka pro koncentraci syrupu
A144: 4 | B144: B-433 | C144: akumulační nádrž na odstředěnou tekutinu
A145: 4 | B145: P-434 | C145: čerpadlo na zředěný syrup
